Cogmind - Beta 11.1 @@@ ROGUE MODE // 2022.05.24 @ 17:52:21 Player: youngster Result: Heading to fleet! Performance ------------- Evolutions (9) 4500 Regions Visited (29) 5800 Robots Destroyed (542) 2710 Value Destroyed (29036) 29036 Prototype IDs (104) 2080 Alien Tech Used (11) 2200 Bonus (29060) 29060 TOTAL SCORE: 75386 Bonus ------- Triggered High Security 500 Triggered Max Security 1000 High Alert Combat Kills 11254 Follower Combat Kills 1192 Network Hubs Disabled 200 Met Data Miner 300 Met Imprinter 300 Destroyed Z-Imprinter 1000 Triggered Deep Caves Wall 500 Exposed GOLEM Chamber 500 Met Zhirov 300 Used Core Reset Matrix 3000 Scanned by Researcher 1000 Pursued by Intercept 500 Integrated Exoskeleton 5000 Win 3000 Friendly Fire -486 Cogmind --------- Core Integrity 1464/1600 Matter 276/300 Energy 338/340 System Corruption 0% Temperature Cool (0) Movement Walking (30) Location To Fleet Rendezvous Parts ------- > --- POWER (1) -------- Zero-point Reactor > --- PROPULSION (3) --- Sigix Exoskeleton > --- UTILITY (5) ------ Advanced Power Amplifier Medium Storage Unit Graphene Brace AEGIS Remote Shield Advanced Component Analysis Suite > --- WEAPON (2) ------- Sigix Sheargun Sigix Sheargun > --- INVENTORY (10) --- Transdimensional Reconstructor Transdimensional Reconstructor Hypercooled Linear Accelerator Peak State ------------ > --- POWER ------------ Zero-point Reactor Vortex Chain Reactor > --- PROPULSION ------- High-density Centrium Heavy Treads High-density Centrium Heavy Treads High-density Centrium Heavy Treads > --- UTILITY ---------- Huge Storage Unit Assembled Biocell Array Assembled Combat Suite Experimental Targeting Computer Experimental Target Analyzer Centrium Medium Armor Plating Centrium Heavy Armor Plating Graphene Brace AEGIS Remote Shield > --- WEAPON ----------- Hypercooled Linear Accelerator Hypercooled Linear Accelerator Core Stripper > --- INVENTORY -------- Zionite Light DM Reactor Zero-point Reactor High-density Centrium Heavy Treads Advanced Power Amplifier Experimental Cooling System Experimental Coolant Injector Advanced Matter Compressor Zionite Weapon Casing Zionite Weapon Casing Experimental Focal Shield Thermal Barrier Experimental EM Disruption Field Antimissile System Mobile Refinery Mk. CCLXVII Sensor Drone Bay Transdimensional Reconstructor Hypervelocity EM Gauss Rifle Enhanced Nova Cannon Helical Railgun Multirail Point Singularity Launcher Advanced Datajack Sigix Broadsword [Rating: 238] Favorites ----------- Power Assembled Flux Generator Engine Improved Deuterium Engine Power Core Enhanced Nuclear Core Reactor Assembled Flux Generator Propulsion Assembled Alloy Leg Treads Improved Medium Treads Leg Assembled Alloy Leg Wheel Armored Huge Wheel Hover Unit Zionite Glidesys I Utility Sensor Drone Bay Device Sensor Drone Bay Storage Assembled Biocell Array Processor Transport Network Coupler Hackware Authchip [Device] Protection Assembled Alloy Armor Artifact Phase Redirector Weapon Assembled Focal Cannon Energy Gun Beamcaster Energy Cannon Assembled Focal Cannon Ballistic Gun Gauss Rifle Ballistic Cannon Hypercooled Linear Accelerator Launcher Long-range Missile Launcher Special Weapon Advanced Remote Datajack Impact Weapon Heavy Flail Slashing Weapon Sigix Broadsword Piercing Weapon Makeshift Spear Special Melee Weapon Improved Datajack Build | -11 -10 -10 -10 -9 -8 -8 -7 -7 -7 -7 -6 -6 -6 -6 -6 -6 -5 -5 -5 -5 -5 -5 -4 -3 -3 -2 -2 -2 -1 ------- Run | Scr Mat Min Exi Min Mat Sto Fac Low Low Dat Pro Fac Low Low Zio Dee Pro Fac Ext Cet Arc Hub Fac Res Qua Res Tes Sec Acc Slots Evolved 18 | . . . . . 4 . 2 . . . . 2 . . . . . 2 . . . . 2 2 . 2 . . 2 Power 2 | . . . . . . . . . . . . 1 . . . . . . . . . . . . . 1 . . . Propulsion 4 | . . . . . 2 . . . . . . . . . . . . . . . . . . 2 . . . . . Utility 10 | . . . . . 1 . 2 . . . . 1 . . . . . 2 . . . . 2 . . . . . 2 Weapon 2 | . . . . . 1 . . . . . . . . . . . . . . . . . . . . 1 . . . Parts Attached 922 | 6 9 12 . 6 59 33 64 13 30 3 16 60 24 9 15 45 13 25 15 14 3 32 23 12 94 105 109 70 3 Power 32 | 1 . . . . 2 . 3 1 . . . 4 1 . . 3 . . . . . . . 2 1 2 6 6 . Engine 3 | 1 . . . . . . . . . . . 1 . . . 1 . . . . . . . . . . . . . Core 10 | . . . . . 2 . 3 1 . . . 3 1 . . . . . . . . . . . . . . . . Reactor 19 | . . . . . . . . . . . . . . . . 2 . . . . . . . 2 1 2 6 6 . Propulsion 93 | 2 1 1 . 1 12 10 6 2 5 . 1 8 1 . . 8 . . . 1 . 2 5 1 12 5 7 2 . Treads 71 | 2 1 1 . 1 6 9 6 . 3 . . 6 1 . . 4 . . . 1 . 2 4 . 10 5 7 2 . Leg 19 | . . . . . 6 1 . 1 1 . 1 2 . . . 3 . . . . . . 1 1 2 . . . . Wheel 2 | . . . . . . . . 1 1 . . . . . . . . . . . . . . . . . . . . Hover 1 | . . . . . . . . . . . . . . . . 1 . . . . . . . . . . . . . Flight . | . . . . . . . . . . . . . . . . . . . . . . . . . . . . . . Utility 505 | 1 2 1 . 3 23 7 22 5 14 1 2 28 15 5 5 20 9 20 15 11 3 28 13 7 68 78 66 30 3 Device 341 | . . . . 2 7 4 8 3 7 . 1 15 8 3 3 11 6 12 10 5 2 18 13 7 51 63 56 24 2 Storage 19 | 1 1 . . . 1 1 . . 3 . . 2 . . . 1 . 1 1 . . . . . 4 . 1 1 1 Processor 19 | . . . . . 2 . 3 . . . . 1 1 . . . . . . 2 . . . . 1 5 3 1 . Hackware 2 | . . . . . . . . . . . . . . . . . . 2 . . . . . . . . . . . Protection 117 | . 1 1 . 1 13 2 11 2 4 1 1 10 6 2 2 8 3 5 4 4 1 10 . . 5 10 6 4 . Artifact 7 | . . . . . . . . . . . . . . . . . . . . . . . . . 7 . . . . Weapon 292 | 2 6 10 . 2 22 16 33 5 11 2 13 20 7 4 10 14 4 5 . 2 . 2 5 2 13 20 30 32 . Energy Gun 32 | 1 2 1 . . 1 . 6 . . . . . . . 1 3 . 1 . 1 . . 2 1 1 . 6 5 . Energy Cannon 21 | . . . . . . 1 2 1 1 . . 2 . . 1 3 . . . . . . . . 6 3 1 . . Ballistic Gun 73 | 1 . 3 . 2 14 7 12 . . 1 4 7 3 2 6 3 . . . 1 . . . . . . 5 2 . Ballistic Cannon 28 | . . . . . . . 1 . . . 1 4 . . . . . . . . . . . . 2 7 5 8 . Launcher 65 | . 1 4 . . 2 2 7 1 5 . 5 1 3 2 1 2 2 2 . . . 2 1 . 2 5 4 11 . Special Weapon 1 | . . . . . . . . . . . . . . . . . . . . . . . . . . . 1 . . Impact Weapon 53 | . 3 2 . . 5 6 5 2 5 . 3 6 1 . 1 3 2 2 . . . . . . 1 . 3 3 . Slashing Weapon 13 | . . . . . . . . . . . . . . . . . . . . . . . . . 1 5 4 3 . Piercing Weapon 4 | . . . . . . . . 1 . . . . . . . . . . . . . . 2 1 . . . . . Special Melee Weapon 2 | . . . . . . . . . . 1 . . . . . . . . . . . . . . . . 1 . . Unidentified Prototypes 68 | . . . . 1 2 3 . . . . . . . . 1 9 . 1 . 3 . . 1 . 13 5 22 7 . Corrupted Parts 2 | . . . . . . . . . . . . . . . . . . . . . . . . . 2 . . . . System Corruption 14 | . . . . . . . . . . . . . . . . . . . . . . . . . 14 . . . . Parts Lost 95 | . 1 . . . 3 1 21 1 3 . 4 2 . . . 3 . 4 . . . 13 9 4 8 4 6 8 . Power 10 | . . . . . . . 3 . . . . 1 . . . . . . . . . 1 1 . . . 2 2 . Propulsion 19 | . . . . . . 1 7 . 1 . 3 . . . . . . . . . . 1 2 1 3 . . . . Utility 41 | . . . . . 1 . 7 1 2 . . . . . . 2 . 2 . . . 8 5 1 3 2 4 3 . Weapon 25 | . 1 . . . 2 . 4 . . . 1 1 . . . 1 . 2 . . . 3 1 2 2 2 . 3 . Highest Loss Streak 10 | . 1 . . . 2 1 6 1 2 . 2 2 . . . 1 . 2 . . . 10 7 3 4 1 3 3 . To Critical Strikes . | . . . . . . . . . . . . . . . . . . . . . . . . . . . . . . Average Slot Usage (%) 87 | . 95 100 100 100 99 99 95 79 85 84 73 97 100 100 96 90 86 87 83 79 75 78 63 77 88 84 79 72 72 Engine 2 | . 14 14 14 14 . . . . . . . 1 6 6 6 4 . . . . . . . . . . . . . Core 2 | . . . . . 8 9 6 2 7 7 7 11 6 6 6 . . . . . . . . . . . . . . Reactor 3 | . . . . . . . . . . . . . . . . 5 6 5 5 5 5 4 4 9 4 8 11 11 9 Treads 15 | . 28 28 28 28 17 31 27 15 7 7 . 17 26 26 26 22 . . . 2 5 4 . 6 13 16 12 11 . Leg 7 | . . . . . 18 4 . 2 6 7 8 7 . . . 3 26 23 23 17 10 11 10 8 12 2 . . 9 Device 13 | . . . . 12 4 6 6 13 13 15 13 15 18 19 17 7 12 14 12 9 16 16 21 26 21 13 17 16 31 Storage 8 | . 15 14 14 14 9 9 7 7 7 7 7 6 6 6 6 7 13 11 11 11 11 11 10 9 8 8 8 6 4 Processor 6 | . . . . . 9 9 15 7 7 7 7 12 13 13 13 6 6 5 5 5 . . . . 1 12 9 7 . Protection 4 | . 7 14 14 1 3 2 5 3 2 . . 3 1 . . 9 . 6 5 10 9 10 4 1 5 7 5 3 . Energy Gun 2 | . 15 14 14 14 6 . 1 . . . . . . . . 3 . 1 . . . . 1 3 . . 1 2 18 Energy Cannon 4 | . . . . . . . . . . . . . . . . 3 13 11 17 13 11 15 2 4 13 6 . . . Ballistic Gun 5 | . 8 7 . 2 19 20 12 4 . . 2 13 19 19 13 8 . . . . . . . . . . 1 . . Impact Weapon 3 | . 4 5 14 11 1 5 4 13 14 7 8 2 . . 2 1 5 2 . . . . . . . . . . . Naked Turns . | . . . . . . . . . . . . . . . . . . . . . . . . . . . . . . Heaviest Build 239 | 14 33 37 35 47 54 58 61 54 239 229 230 95 91 95 97 122 134 188 193 192 192 193 169 171 225 225 218 225 59 Greatest Support 270 | 40 40 40 40 40 80 82 85 45 45 28 28 120 120 118 118 118 108 108 108 108 60 60 140 140 125 230 270 270 60 Greatest Overweight (x) 15 | . . . . 1 1 . 1 1 8 8 15 2 . . . 3 1 1 2 2 3 3 3 4 2 1 1 . . Average Overweight (x) 1 | . . . . . . . . . 6 7 7 . . . . . 1 1 1 1 2 2 1 1 1 . . . . Largest Inventory Capacity 35 | 8 15 15 15 15 15 15 15 15 35 35 35 35 20 20 20 20 20 25 25 25 25 25 25 25 25 25 25 25 10 Average Capacity 21 | 7 13 15 15 15 15 15 15 15 30 35 35 18 20 20 20 20 20 22 25 25 25 25 25 25 25 25 25 23 7 Most Carried 35 | 3 15 15 15 15 15 15 15 15 30 30 35 30 20 20 20 20 20 24 25 25 25 25 25 25 25 25 25 25 3 Average Carried 20 | 1 8 14 15 14 14 14 14 14 23 30 32 18 19 20 19 19 20 20 22 24 25 24 21 22 24 24 24 22 3 Final Capacity 35 | 8 15 15 15 15 15 15 15 15 35 35 35 20 20 20 20 20 20 25 25 25 25 25 25 25 25 25 25 25 10 Final Carried 31 | 3 15 15 15 15 15 15 15 15 30 30 31 20 20 20 20 20 20 22 25 25 25 23 24 25 25 24 25 25 3 Class Distribution -------------------- 22% | Mutant 16% | Generator-Mutant 14% | Golem 9% | Hauler-Mutant 7% | Scavenger-Mutant 5% | Scavenger-Gunner 4% | Tank 4% | Derelict-Gunner 4% | Gunner 3% | Derelict-Mutant Dominant Class ---------------- Mutant | -10/Materials Mutant | -10/Mines Mutant | -10/Exiles Mutant | -9/Mines Scavenger-Gunner | -8/Materials Mutant | -8/Storage Mutant | -7/Factory Mutant | -7/Lower Caves Hauler-Mutant | -7/Lower Caves Hauler-Mutant | -7/Data Miner Hauler-Mutant | -6/Proximity Caves Derelict-Gunner | -6/Factory Derelict-Gunner | -6/Lower Caves Derelict-Gunner | -6/Lower Caves Derelict-Mutant | -6/Zion Tank | -6/Deep Caves Golem | -5/Proximity Caves Golem | -5/Factory Tank | -5/Extension Mutant | -5/Cetus Golem | -5/Archives Mutant | -5/Hub_04(d) Golem | -4/Factory Golem | -3/Research Scavenger-Mutant | -3/Quarantine Generator-Mutant | -2/Research Generator-Mutant | -2/Testing Generator-Mutant | -2/Section 7 Alien-Sigix | -1/Access Resources | -11 -10 -10 -10 -9 -8 -8 -7 -7 -7 -7 -6 -6 -6 -6 -6 -6 -5 -5 -5 -5 -5 -5 -4 -3 -3 -2 -2 -2 -1 ----------- Run | Scr Mat Min Exi Min Mat Sto Fac Low Low Dat Pro Fac Low Low Zio Dee Pro Fac Ext Cet Arc Hub Fac Res Qua Res Tes Sec Acc Matter Collected 21399 | 234 456 219 . 63 1466 661 1563 506 630 . 555 1402 351 215 284 1152 273 317 224 160 . 393 109 255 1411 2113 3475 2896 16 Remotely . | . . . . . . . . . . . . . . . . . . . . . . . . . . . . . . Salvage Created 26248 | . 566 194 . 74 2282 1267 1820 269 771 . 242 1109 339 152 . 1166 358 1046 408 180 39 1311 318 142 982 2859 2836 5518 . Parts 1237 | . 28 20 . 1 109 72 97 4 25 . 11 79 9 7 . 37 15 61 25 8 3 78 12 5 85 171 97 178 . Haulers Intercepted 18 | . 2 . . . 6 6 2 . . . . . . . . . . . . . . 1 . . . . . 1 . Recyclers Shooed 8 | . . . . 1 2 . . . . . . 4 . . . . . . . . . . . . . 1 . . . Parts Field Recycled . | . . . . . . . . . . . . . . . . . . . . . . . . . . . . . . Retrieved Matter . | . . . . . . . . . . . . . . . . . . . . . . . . . . . . . . Parts Self-Destructed 64 | . . . . . . . . 1 27 . 10 . 8 7 . . 11 . . . . . . . . . . . . Prevented 3 | . . . . . . . . 2 1 . . . . . . . . . . . . . . . . . . . . Kills | -11 -10 -10 -10 -9 -8 -8 -7 -7 -7 -7 -6 -6 -6 -6 -6 -6 -5 -5 -5 -5 -5 -5 -4 -3 -3 -2 -2 -2 -1 ------- Run | Scr Mat Min Exi Min Mat Sto Fac Low Low Dat Pro Fac Low Low Zio Dee Pro Fac Ext Cet Arc Hub Fac Res Qua Res Tes Sec Acc Combat Hostiles Destroyed 504 | . 14 9 . . 31 15 34 3 20 . 12 17 8 7 . 55 10 21 6 3 . 19 3 4 15 47 45 106 . Melee 66 | . 1 . . . . . 1 . 5 . . . . . . 1 . . . . . 1 . 1 . 22 15 19 . Guns 106 | . 8 . . . 30 15 14 . . . 1 12 3 3 . 11 . 2 . . . . . 1 . . 3 3 . Cannons 99 | . . . . . . . 4 . 1 . . 2 . . . . 4 10 6 3 . 15 . . 14 14 16 10 . AOE 214 | . . 9 . . . . 15 2 14 . 11 3 5 4 . 38 6 9 . . . 3 2 2 . 11 8 72 . Classes Destroyed 33 | . 3 2 . 1 5 1 3 1 . . 1 . . . . 5 . . . . . 2 . . . 1 3 5 . Worker 32 | . . . . 1 . 5 8 . . . . 3 . . . . . 3 . . . 9 . . . 1 1 1 . Builder 22 | . . . . . 2 . 6 . . . . 4 . . . . . 5 . . . 2 . . . 3 . . . Tunneler 2 | . . 2 . . . . . . . . . . . . . . . . . . . . . . . . . . . Hauler 18 | . 2 . . . 6 6 2 . . . . . . . . . . . . . . 1 . . . . . 1 . Recycler 16 | . . 1 . 1 3 2 4 . . . . 1 . . . . . 1 . . . . 1 . . 2 . . . Carrier 2 | . . . . . . . . . . . . . . . . . . . . . . . . . . . . 2 . Minesweeper 1 | . . . . . . . . 1 . . . . . . . . . . . . . . . . . . . . . Mechanic 9 | . . . . . 1 . 1 . . . . . . . . . . . . . . . . . . . . 7 . Operator 4 | . . . . . . . . . . . . . . . . . . . . . . 1 . . . 1 1 1 . Drone 1 | . . . . . . . . . . . . . . . . . . . . . . . . . . 1 . . . Watcher 14 | . . . . . 4 . 1 . . . . . . . . . . . 1 . . . . . 1 4 1 2 . Swarmer 65 | . 5 9 . . . . 10 . 6 . 8 3 5 5 . . 6 4 . . . . . 3 . . 1 . . Saboteur 6 | . . . . . . . . . . . . . . . . . . . . . . 1 . . . . 2 3 . Grunt 189 | . 9 . . . 19 10 7 3 10 . 4 3 2 1 . . 1 11 . . . 9 1 . . 17 22 60 . Brawler 12 | . . . . . . 1 . . 1 . . 1 . . . . . . . . . . . . . . 3 6 . Duelist 10 | . . . . . . . 1 . 1 . . 1 1 . . . . . . . . 1 . . . . . 5 . Protector 5 | . . . . . . . . . . . . . . . . . . . . . . . . . . . . 5 . Researcher 4 | . . . . . . . . . . . . . . . . . . . . . . . . . . . 3 1 . Sentry 34 | . . . . . 9 4 2 . 2 . . 2 . 1 . . 1 . 4 . . 1 . . . 4 . 4 . Specialist 5 | . . . . . . . 2 . . . . . . . . . . . . . . . 1 . . 2 . . . Hunter 27 | . . . . . 3 . 4 . . . . 4 . . . . . 2 . 1 . 3 1 . . . 2 7 . Programmer 71 | . . . . . . . 8 . . . . 3 . . . . 2 4 2 . . 2 . 1 5 23 12 9 . Heavy 4 | . . . . . . . . . . . . . . . . . . . . . . 2 . . . 1 . 1 . Q-Series 1 | . . . . . . . . . . . . . . . . . . . . . . . . . . . . 1 . Behemoth 1 | . . . . . . . . . . . . . . . . . . . . . . . . . . . . 1 . Cetus Guard 2 | . . . . . . . . . . . . . . . . . . . . 2 . . . . . . . . . Quarantine Guard 10 | . . . . . . . . . . . . . . . . . . . . . . . . . 10 . . . . S7 Guard 1 | . . . . . . . . . . . . . . . . . . . . . . . . . . . . 1 . Tracker 1 | . . . . . . . . . . . . . . . . . . . . . . . . . . . . 1 . Investigator 1 | . . . . . . . . . . . . . . . . . . . . . . . . . . . . 1 . Executioner 2 | . . . . . . . . . . . . . . . . . . . . . . . . . . . . 2 . Alpha 7 1 | . . . . . . . . . . . . . . . . . . . . . . . . . . . 1 . . Fortress 1 | . . . . . . . . . . . . . . . . . . . . . . . . . . . 1 . . Protovariant H 1 | . . . . . . . . . . . . . . . . . . . . . . . . . . . 1 . . Z-Technician 5 | . . . . . . . . . . . . . . . . 5 . . . . . . . . . . . . . Z-Light 8 | . . . . . . . . . . . . . . . . 8 . . . . . . . . . . . . . Decomposer 4 | . . . . . . . . 2 . . . . 1 . . . 1 . . . . . . . . . . . . Samaritan 1 | . . . . . . . . . . . 1 . . . . . . . . . . . . . . . . . . Assembler 2 | . . . . . . . . . . . . . . . . 2 . . . . . . . . . . . . . Assembled 42 | . . . . . . . . . . . . . . . . 42 . . . . . . . . . . . . . Golem 5 | . . . . . . . . . . . . . . . . 5 . . . . . . . . . . . . . Thug 1 | . . 1 . . . . . . . . . . . . . . . . . . . . . . . . . . . Best Kill Streak 37 | . 6 3 . 1 5 3 17 2 8 . 4 6 6 4 . 37 5 7 2 3 . 11 3 4 2 11 5 23 . Combat Bots Only 35 | . 6 3 . . 5 3 12 2 8 . 4 3 6 4 . 35 5 6 2 3 . 5 2 4 2 10 5 19 . Max Kills in Single Turn 29 | . 1 3 . 1 1 2 4 2 4 . 3 2 3 1 . 29 3 2 2 1 . 3 1 2 1 4 2 10 . Gunslinging 1 | . . . . . . 1 1 . . . . . . . . . . . . . . . . . . . . . . Exploded 28 | . . 3 . . . . 3 2 4 . 3 2 3 1 . 28 3 2 . . . 1 1 2 . 3 2 9 . Melee 1 | . 1 . . . . . 1 . 1 . . . . . . 1 . . . . . 1 . 1 . 1 1 1 . Uniques/NPCs Destroyed . | . . . . . . . . . . . . . . . . . . . . . . . . . . . . . . Combat | -11 -10 -10 -10 -9 -8 -8 -7 -7 -7 -7 -6 -6 -6 -6 -6 -6 -5 -5 -5 -5 -5 -5 -4 -3 -3 -2 -2 -2 -1 -------- Run | Scr Mat Min Exi Min Mat Sto Fac Low Low Dat Pro Fac Low Low Zio Dee Pro Fac Ext Cet Arc Hub Fac Res Qua Res Tes Sec Acc Damage Taken 42690 | . 724 147 . . 1568 635 4556 151 918 . 241 1199 225 303 . 1813 521 1358 546 346 . 4138 3064 565 3865 4419 4799 6219 370 Core 4608 | . 168 8 . . 122 33 452 . 98 . 50 129 . 12 . 269 47 116 36 39 . 463 331 33 1080 161 207 618 136 Absorbed by Shields 9625 | . . . . . . . . . . . . . . . . 219 . . . . . 21 131 199 133 378 2216 5980 348 Reduced by Siege Mode 83 | . . . . . . . . . . . . . . . . . . . . . . 16 . . . 23 44 . . Redirected to Core 919 | . . . . . . . . . . . . . . . . . . . . . . . . . 905 14 . . . Redirected to Shielding 174 | . 39 . . . . . . . . . . . . . . 135 . . . . . . . . . . . . . Regen/Repaired (Parts) 5853 | . . . . . 134 154 159 . . . . . . . 1071 . . . . . . . . . . 1324 1191 1820 . Core Remaining (%) 50 | 100 . . . 29 . 71 . . . . 14 . . . . . 46 . . . . 34 71 . 14 . . 32 91 Volleys Fired 1173 | . 32 6 . 1 94 36 95 5 13 . 17 40 13 9 1 52 19 77 19 15 4 60 25 14 84 197 107 113 25 Largest 3 | . 2 1 . 1 3 3 3 2 1 . 1 3 3 3 1 3 2 2 3 2 1 3 1 2 3 3 2 2 2 Hottest 200 | . 105 33 . 75 128 128 120 92 69 . 48 127 86 86 30 122 50 50 75 50 25 75 50 50 160 60 95 200 200 Shots Fired 2100 | . 61 6 . 2 276 94 201 6 13 . 18 109 29 19 1 118 37 120 56 29 4 119 25 18 138 255 171 138 37 Gun 957 | . 60 . . 2 273 92 146 3 . . 4 77 24 15 1 89 . 9 . . . . 3 2 7 . 74 39 37 Cannon 988 | . . . . . . 1 41 1 3 . 2 30 . . . 9 32 104 56 29 4 111 20 16 128 248 88 65 . Launcher 155 | . 1 6 . . 3 1 14 2 10 . 12 2 5 4 . 20 5 7 . . . 8 2 . 3 7 9 34 . Special . | . . . . . . . . . . . . . . . . . . . . . . . . . . . . . . Kinetic 945 | . 27 . . . 233 89 164 3 . . 6 100 24 15 1 65 . . . . . . . . . 34 116 68 . Thermal 794 | . 33 . . 2 40 4 . . . . . . . . . 1 32 104 56 29 4 111 20 16 128 214 . . . Explosive 154 | . 1 6 . . 3 1 14 2 10 . 12 2 5 4 . 20 5 7 . . . 8 2 . 3 7 9 33 . Electromagnetic 142 | . . . . . . . 23 1 3 . . 7 . . . 32 . 9 . . . . 3 2 7 . 46 9 . Slashing 64 | . . . . . . . . . . . . . . . . . . . . . . . . . . . . 27 37 Robot Hit Streak 33 | . 7 1 . . 27 14 13 5 6 . 2 14 11 3 . 24 7 10 16 18 5 17 7 11 33 19 22 22 . Robot Miss Streak 5 | . 3 1 . 2 3 2 5 2 2 . 3 3 3 4 . 5 4 5 1 2 . 3 2 . 1 3 4 3 2 Penetration Max 2 | . . . . . 1 1 1 . . . . 1 . . . 1 . . . . . . . . . . 2 2 . Secondary Targets 18 | . . . . . 5 5 2 . . . . . 1 1 . 4 . . . . . . . . . . . . . Max Gunslinging Chain 1 | . . . . . 1 1 1 . . . . . 1 1 . 1 . . . . . . . . . . . . . Shots Hit Robots 1489 | . 46 4 . 5 187 72 158 12 32 2 3 83 19 6 . 87 15 49 26 24 4 64 6 13 107 137 183 145 . Core Hits 1077 | . 17 10 . . 86 39 104 6 36 . 22 56 14 11 . 91 15 42 9 7 2 47 12 6 45 88 102 210 . Critical Kills 4 | . . . . . . 1 1 . . . . 1 . . . . . . . . . . . . . . 1 . . Critical Parts Destroyed 33 | . 5 . . 1 4 4 1 2 1 . . 9 1 . . 3 . 1 . . . . . . . . . 1 . Critical Strikes 85 | . 5 . . 1 7 5 7 2 3 . . 10 1 . . 6 . 1 . . . . 1 4 1 5 10 16 . Burn 3 | . . . . . 3 . . . . . . . . . . . . . . . . . . . . . . . . Destroy 15 | . . . . . 1 3 1 . . . . 8 . . . . . . . . . . . . . . 1 1 . Blast 19 | . . . . . . . 3 . . . . . . . . . . . . . . . . . . 2 5 9 . Corrupt 7 | . . . . . . . 2 . . . . . . . . 3 . . . . . . 1 . 1 . . . . Smash 22 | . 5 . . 1 3 2 1 2 1 . . 2 1 . . 3 . 1 . . . . . . . . . . . Sever 13 | . . . . . . . . . . . . . . . . . . . . . . . . . . 3 4 6 . Impale 6 | . . . . . . . . . 2 . . . . . . . . . . . . . . 4 . . . . . Melee Attacks 456 | . 15 5 . 5 19 18 19 12 41 2 5 9 2 . 11 14 . 2 . . . . 1 30 . 69 86 91 . Kinetic 16 | . . . . . . . . . . . . . . . . . . . . . . . . . . . 10 6 . Impact 146 | . 15 5 . 5 19 18 19 10 16 . 1 9 2 . 11 14 . 2 . . . . . . . . . . . Slashing 228 | . . . . . . . . . . . . . . . . . . . . . . . . . . 69 74 85 . Piercing 62 | . . . . . . . . 2 25 . 4 . . . . . . . . . . . 1 30 . . . . . Sneak Attacks 45 | . . 3 . 5 5 9 5 3 . 2 . 2 . . . . . 2 . . . . 1 . . 2 3 3 . Combat Hostiles 4 | . . . . . . . . . . . . . . . . . . . . . . . . . . 1 2 1 . Follow-up Attacks 10 | . . . . . . . . 1 9 . . . . . . . . . . . . . . . . . . . . Damage Inflicted 96976 | . 720 868 . 222 3637 2275 6179 918 2482 . 1326 2214 1158 557 . 7486 1317 4163 1280 1124 180 4551 859 734 5108 10675 10424 26519 . Guns 12801 | . 420 . . . 2935 1387 2760 16 . . 24 1259 290 139 . 1383 . 173 . . . . 121 80 238 . 598 978 . Cannons 22732 | . . . . . . . 754 31 72 . . 372 . . . 164 654 1889 1254 1124 180 3298 . . 4757 3720 2508 1955 . Explosions 43244 | . . 700 . . . 30 2028 315 1382 . 1302 388 755 418 . 5392 663 1884 . . . 1224 636 322 113 2805 3229 19658 . Melee 17678 | . 295 168 . 222 653 770 594 556 1028 . . 195 113 . . 547 . 172 . . . . 84 332 . 4033 4064 3852 . Ramming 521 | . 5 . . . 49 88 43 . . . . . . . . . . 45 26 . . 29 18 . . 117 25 76 . Kinetic 15933 | . 172 . . . 2265 1323 2890 16 . . 24 1480 290 139 . 743 . . . . . . . . . 989 3262 2340 . Thermal 20086 | . 248 . . . 670 64 118 . . . . . . . . 1710 654 2408 1254 1124 180 3298 . 244 4870 2731 319 194 . Explosive 39625 | . . 700 . . . 30 1910 315 1382 . 1302 266 755 418 . 3682 663 1365 . . . 1020 636 78 . 2805 2834 19464 . Electromagnetic 2808 | . . . . . . . 624 31 72 . . 273 . . . 804 . 173 . . . 204 121 80 238 . 168 20 . Impact 4853 | . 295 168 . 222 653 770 594 527 597 . . 195 113 . . 547 . 172 . . . . . . . . . . . Slashing 12274 | . . . . . . . . . . . . . . . . . . . . . . . . . . 4033 3816 4425 . Piercing 876 | . . . . . . . . 29 431 . . . . . . . . . . . . . 84 332 . . . . . Highest Corruption 75 | . 2 2 2 2 . . 13 13 14 14 14 1 1 1 1 4 7 2 2 4 4 19 . 7 14 19 50 75 . Average Corruption 13 | . 2 2 2 2 . . 9 13 13 14 14 1 1 1 1 4 5 1 2 3 4 3 . 6 4 12 37 55 . Corruption Purged 16 | . . . . . . . . . . . . . . . . . . . . . . 3 . . 8 5 . . . Corruption Blocked . | . . . . . . . . . . . . . . . . . . . . . . . . . . . . . . Effects 895 | . 13 11 2 10 . . 35 47 78 6 86 1 13 5 1 71 44 2 20 4 12 23 . 13 14 94 164 126 . Message Errors 191 | . . 3 1 2 . . 5 10 17 2 21 1 4 2 1 19 11 1 3 . 3 5 . 7 4 13 36 20 . Matter Fused 212 | . 6 3 . 4 . . 7 14 22 3 24 . 3 1 . 13 9 . 7 1 4 5 . 2 1 23 38 22 . Heat Flow Errors 90 | . 2 2 . . . . 2 8 7 . 9 . 2 . . 8 3 . 4 1 1 1 . 1 1 8 17 13 . Energy Discharges 103 | . 1 1 . 2 . . 4 2 9 . 10 . . 1 . 7 7 1 . 1 3 2 . 1 2 19 20 10 . Parts Rejected 16 | . . . . . . . 3 . 1 . . . . . . . . . . . . 2 . . 1 1 1 7 . Data Loss (minor) 102 | . 3 1 1 1 . . 5 9 11 1 12 . 1 . . 9 7 . 3 1 1 5 . . 2 8 13 8 . Data Loss (major) 40 | . . . . . . . 4 3 7 . 5 . 2 1 . 3 . . 1 . . 1 . 2 1 3 4 3 . Misfires 35 | . . . . 1 . . 2 . . . 1 . . . . 7 5 . 1 . . . . . . 9 5 4 . Alerts 27 | . 1 1 . . . . . 1 4 . 3 . 1 . . 2 2 . 1 . . 1 . . 1 1 6 2 . Misdirections 33 | . . . . . . . . . . . 1 . . . . . . . . . . 1 . . . 3 5 23 . Weapon Failures 46 | . . . . . . . 3 . . . . . . . . 3 . . . . . . . . 1 6 19 14 . Overload Shots . | . . . . . . . . . . . . . . . . . . . . . . . . . . . . . . Overflow Damage 6060 | . 148 124 . 94 179 337 367 391 252 . 23 84 113 12 . 754 36 289 37 40 . 214 54 95 230 588 581 1018 . Projectiles 712 | . . . . . . . 2 17 . . . . . . . . 32 71 26 40 . 194 . . 167 110 19 34 . Explosions 1667 | . . 56 . . . . 36 . 26 . 23 19 16 12 . 456 4 86 . . . 20 . 9 63 36 66 739 . Melee 3681 | . 148 68 . 94 179 337 329 374 226 . . 65 97 . . 298 . 132 11 . . . 54 86 . 442 496 245 . Knockbacks 65 | . 2 . . . . 2 18 1 3 . . 7 . . . 1 . 1 . . . 1 . . . 7 16 6 . Impact 21 | . 2 . . . . 1 6 1 3 . . 4 . . . 1 . 1 . . . 1 . . . 1 . . . Kinetic 41 | . . . . . . . 10 . . . . 3 . . . . . . . . . . . . . 6 16 6 . Secondary 3 | . . . . . . 1 2 . . . . . . . . . . . . . . . . . . . . . . Self-Inflicted Damage 1400 | . . 51 . . . . 302 . . . 67 . . 47 . 259 22 73 . . . 133 . 187 86 72 49 52 . Shots 28 | . . 2 . . . . 8 . . . 2 . . 1 . 1 1 3 . . . 3 . 2 1 2 1 1 . Rammed 31 | . 4 . . . 1 14 8 . . . . . . . . . . . . . . . . . . 2 1 1 . Targets Rammed 53 | . 4 . . . 7 15 10 . . . . . . . . . . 1 2 . . 4 2 . . 3 1 4 . Kicked 17 | . . . . . 5 . . . . . . . . . . . . 1 2 . . 4 2 . . . . 3 . Crushed 5 | . . . . . 1 1 2 . . . . . . . . . . . . . . . . . . 1 . . . Highest Temperature 372 | . 213 274 . 36 332 337 249 250 260 . 267 347 298 . . 292 219 . 254 205 79 115 35 126 372 247 333 319 . Average Temperature 96 | . 85 133 . 22 95 122 63 103 89 . 92 134 117 . . 102 82 . 57 106 58 45 16 6 125 85 101 94 . Received Heat Transfer 6639 | . 237 . . . 711 342 345 90 387 . 27 147 9 18 . 435 72 327 90 . . 914 773 . . 369 601 745 . Effects 12 | . . . . . . 2 . . 2 . . 1 . . . . . . . . . . . . 3 1 1 2 . Shutdowns 2 | . . . . . . 1 . . . . . 1 . . . . . . . . . . . . . . . . . Energy Bleed 4 | . . . . . . 1 . . . . . . . . . . . . . . . . . . . 1 . 2 . Interference 4 | . . . . . . . . . 2 . . . . . . . . . . . . . . . 2 . . . . Short Circuit 1 | . . . . . . . . . . . . . . . . . . . . . . . . . . . 1 . . Damage (minor) 1 | . . . . . . . . . . . . . . . . . . . . . . . . . 1 . . . . Siege Activations 9 | . . . . . . . . . . . . . . . . . . . . . . 2 . . . 3 4 . . Total Turns 165 | . . . . . . . . . . . . . . . . . . . . . . 15 . . . 50 100 . . Longest Duration 60 | . . . . . . . . . . . . . . . . . . . . . . 8 . . . 21 60 . . Robots Corrupted 6 | . . . . . . . . 1 . . . . . . . 3 . . . . . . 1 . 1 . . . . Combat Hostiles 6 | . . . . . . . . 1 . . . . . . . 3 . . . . . . 1 . 1 . . . . Parts Fried 55 | . 5 7 . 3 7 3 7 2 . . . 3 . . . 9 . . 4 . . . 1 . 3 . 1 . . Impact Corruptions 75 | . 8 3 . 4 7 6 11 13 5 . . 3 3 . . 6 . 4 1 . . . . . . 1 . . . Robots Melted . | . . . . . . . . . . . . . . . . . . . . . . . . . . . . . . Combat Hostiles . | . . . . . . . . . . . . . . . . . . . . . . . . . . . . . . Parts Melted 14 | . . . . . 3 . . 1 1 . . . . . . . . 1 1 . . 4 . . 1 2 . . . Heat Transferred 11087 | . 608 . . . 1406 111 50 . . . . . . . . . 325 1300 675 625 100 1737 . 50 2225 1525 200 150 . Parts Sabotaged 1 | . . . . . . . . . . . . . . . . . . . . . . . . . . . . 1 . Parts Stolen . | . . . . . . . . . . . . . . . . . . . . . . . . . . . . . . Parts Stripped . | . . . . . . . . . . . . . . . . . . . . . . . . . . . . . . Power Chain Reactions 8 | . . . . . . . 1 . . . . . . . . . . 1 . . . . . 1 1 . 3 1 . Missiles Intercepted 1 | . . . . . . . . . . . . . . . . . . . . . . . . . . . 1 . . Alert | -11 -10 -10 -10 -9 -8 -8 -7 -7 -7 -7 -6 -6 -6 -6 -6 -6 -5 -5 -5 -5 -5 -5 -4 -3 -3 -2 -2 -2 -1 ------- Run | Scr Mat Min Exi Min Mat Sto Fac Low Low Dat Pro Fac Low Low Zio Dee Pro Fac Ext Cet Arc Hub Fac Res Qua Res Tes Sec Acc Peak Influence 4072 | . 266 224 . 10 462 625 911 . . . . 558 . . . . . 447 208 178 76 1003 523 310 225 1403 1598 4072 2764 Initial 2443 | . . 6 . . . 163 115 . . . . . . . . . . 1 163 85 71 . 464 180 101 52 789 898 2443 Average 420 | . 135 122 . 2 283 335 303 . . . . 162 . . . . . 197 146 138 49 328 459 181 88 430 1009 2051 2519 Maximum Alert Level 5 | . 1 1 . . 2 2 3 . . . . 2 . . . . . 2 1 . . 3 2 1 1 4 4 5 5 Low Security (%) 51 | 100 83 81 . 100 19 7 41 . . . . 65 . . . . . 43 86 100 100 50 . 73 99 44 . . . Level 1 20 | . 16 18 . . 66 76 25 . . . . 25 . . . . . 51 13 . . 18 24 26 . 6 . . . Level 2 11 | . . . . . 14 16 24 . . . . 9 . . . . . 4 . . . 14 75 . . 28 24 . . Level 3 6 | . . . . . . . 8 . . . . . . . . . . . . . . 15 . . . 8 37 17 . Level 4 6 | . . . . . . . . . . . . . . . . . . . . . . . . . . 11 38 27 . Level 5 1 | . . . . . . . . . . . . . . . . . . . . . . . . . . . . 16 63 High Security 2 | . . . . . . . . . . . . . . . . . . . . . . . . . . . . 38 . Max Security . | . . . . . . . . . . . . . . . . . . . . . . . . . . . . . 37 Squads Dispatched 122 | . 3 . . . 4 2 7 . 1 . . 14 . . . . . 4 1 . . 6 2 1 . 15 18 37 7 Investigation 14 | . 2 . . . 2 2 . . . . . 4 . . . . . 1 . . . . . . . 1 . 1 1 Extermination 29 | . . . . . . . 3 . . . . 3 . . . . . 3 . . . 1 . 1 . 8 7 3 . Reinforcement 26 | . 1 . . . 2 . 4 . . . . 3 . . . . . . 1 . . 3 2 . . 4 3 3 . Assault 42 | . . . . . . . . . 1 . . 1 . . . . . . . . . 2 . . . 2 4 26 6 Garrison 8 | . . . . . . . . . . . . 3 . . . . . . . . . . . . . . 4 1 . Intercept 3 | . . . . . . . . . . . . . . . . . . . . . . . . . . . . 3 . Searches Triggered . | . . . . . . . . . . . . . . . . . . . . . . . . . . . . . . Data Miner Redirects 10 | . . . . . . . . . . . . 1 . . . . . 1 . . . 2 . . . 1 1 4 . Construction Impeded 6 | . . . . . 1 . 2 . . . . 1 . . . . . . 1 . . . . . . 1 . . . Haulers Reinforced 1 | . . . . . . . . . . . . . . . . . . . . . . 1 . . . . . . . Active Scanning Responses . | . . . . . . . . . . . . . . . . . . . . . . . . . . . . . . Cargo Convoy Interrupts 1 | . . . . . . . 1 . . . . . . . . . . . . . . . . . . . . . . Stealth | -11 -10 -10 -10 -9 -8 -8 -7 -7 -7 -7 -6 -6 -6 -6 -6 -6 -5 -5 -5 -5 -5 -5 -4 -3 -3 -2 -2 -2 -1 --------- Run | Scr Mat Min Exi Min Mat Sto Fac Low Low Dat Pro Fac Low Low Zio Dee Pro Fac Ext Cet Arc Hub Fac Res Qua Res Tes Sec Acc Distress Signals 22 | . 1 . . . 5 . 3 . . . . 1 . . . . . . 1 2 . 1 . . . . 2 5 1 Communications Jammed 21 | . . . . . . . . . . . . . . . . . . . . . . . . . 21 . . . . Distress Signals 21 | . . . . . . . . . . . . . . . . . . . . . . . . . 21 . . . . Times Spotted 824 | . 25 13 . . 50 24 57 3 35 . 22 19 7 6 . 70 10 25 12 7 . 32 14 5 18 69 77 201 23 Peak Tracking Total 37 | . 8 3 . . 6 4 12 3 9 . 9 4 3 4 . 37 4 5 3 5 . 10 10 4 4 6 6 36 23 Tactical Retreats 32 | . 1 . . . 4 . 1 . 4 . . . 1 . . 1 . . . 2 . 4 . . . 2 6 4 2 Traps | -11 -10 -10 -10 -9 -8 -8 -7 -7 -7 -7 -6 -6 -6 -6 -6 -6 -5 -5 -5 -5 -5 -5 -4 -3 -3 -2 -2 -2 -1 ------- Run | Scr Mat Min Exi Min Mat Sto Fac Low Low Dat Pro Fac Low Low Zio Dee Pro Fac Ext Cet Arc Hub Fac Res Qua Res Tes Sec Acc Traps Triggered 13 | . 1 . . . 1 . 2 . . . . . 1 . . . . . 1 . . . . 1 1 1 1 1 2 Indirectly . | . . . . . . . . . . . . . . . . . . . . . . . . . . . . . . Trap Hack Attempts . | . . . . . . . . . . . . . . . . . . . . . . . . . . . . . . Triggered . | . . . . . . . . . . . . . . . . . . . . . . . . . . . . . . Disarmed . | . . . . . . . . . . . . . . . . . . . . . . . . . . . . . . Reprogrammed . | . . . . . . . . . . . . . . . . . . . . . . . . . . . . . . Reused . | . . . . . . . . . . . . . . . . . . . . . . . . . . . . . . Traps Extracted . | . . . . . . . . . . . . . . . . . . . . . . . . . . . . . . Installed . | . . . . . . . . . . . . . . . . . . . . . . . . . . . . . . Triggered 7 | . . . . . . . . 2 2 . . . . 3 . . . . . . . . . . . . . . . Most Traps Carried 1 | . . 1 1 1 . . . . . . . . . . . . . . . . . . . . . . . . . Machines | -11 -10 -10 -10 -9 -8 -8 -7 -7 -7 -7 -6 -6 -6 -6 -6 -6 -5 -5 -5 -5 -5 -5 -4 -3 -3 -2 -2 -2 -1 ---------- Run | Scr Mat Min Exi Min Mat Sto Fac Low Low Dat Pro Fac Low Low Zio Dee Pro Fac Ext Cet Arc Hub Fac Res Qua Res Tes Sec Acc Machines Disabled 112 | . . 2 . . 2 6 7 . 2 . . 10 . . 1 4 . 7 . . . 14 . 3 10 3 17 21 3 Max in Single Turn 8 | . . 1 . . 1 1 3 . 2 . . 5 . . 1 2 . 5 . . . 8 . 1 1 1 3 2 1 Garrison Access 4 | . . . . . 1 . . . . . . . . . . . . . . . . 1 . . . 1 . 1 . Network Hub 1 | . . . . . . . . . . . . . . . . . . . . . . 1 . . . . . . . Energy Cycler 1 | . . . . . . . . . . . . . . . . . . . 1 . . . . . . . . . . Machines Sabotaged . | . . . . . . . . . . . . . . . . . . . . . . . . . . . . . . Garrisons Compromised . | . . . . . . . . . . . . . . . . . . . . . . . . . . . . . . Overloaded Fab Kills . | . . . . . . . . . . . . . . . . . . . . . . . . . . . . . . Hacking | -11 -10 -10 -10 -9 -8 -8 -7 -7 -7 -7 -6 -6 -6 -6 -6 -6 -5 -5 -5 -5 -5 -5 -4 -3 -3 -2 -2 -2 -1 --------- Run | Scr Mat Min Exi Min Mat Sto Fac Low Low Dat Pro Fac Low Low Zio Dee Pro Fac Ext Cet Arc Hub Fac Res Qua Res Tes Sec Acc Machines Accessed 109 | . 7 . 1 1 15 13 8 . 3 4 . 6 1 . . . . 5 1 . . 2 3 4 9 8 12 6 . Terminals 66 | . 5 . . . 9 9 3 . . . . 4 . . . . . 1 1 . . 2 2 4 7 5 9 5 . Fabricators 8 | . . . . . . . 2 . . . . 1 . . . . . 3 . . . . . . . . 2 . . Repair Stations 11 | . 1 . . . 2 2 3 . . . . . . . . . . . . . . . 1 . 1 1 . . . Recycling Units 5 | . 1 . . . 2 2 . . . . . . . . . . . . . . . . . . . . . . . Scanalyzers 5 | . . . . . 1 . . . . . . . . . . . . 1 . . . . . . 1 1 . 1 . Garrison Access 4 | . . . . . 1 . . . . . . 1 . . . . . . . . . . . . . 1 1 . . Total Hacks 312 | . 26 . 1 1 39 32 22 . 6 29 . 16 1 . . . . 18 3 . . 3 8 11 26 12 41 17 . Successful 147 | . 15 . 1 1 23 18 7 . 6 29 . 5 1 . . . . 11 1 . . 1 . 7 5 4 8 4 . Failed 165 | . 11 . . . 16 14 15 . . . . 11 . . . . . 7 2 . . 2 8 4 21 8 33 13 . Catastrophic 46 | . 2 . . . 1 1 1 . . . . 1 . . . . . . 2 . . . 3 2 8 6 14 5 . Database Lockouts . | . . . . . . . . . . . . . . . . . . . . . . . . . . . . . . Manual 100 | . 14 . . . 18 10 2 . . . . 7 . . . . . 10 2 . . 2 4 2 2 2 22 3 . Terminals 186 | . 23 . . . 28 23 8 . . . . 10 . . . . . 2 3 . . 3 5 11 21 8 26 15 . Fabricators 37 | . . . . . . . 5 . . . . 4 . . . . . 15 . . . . . . . . 13 . . Repair Stations 31 | . 2 . . . 6 6 9 . . . . . . . . . . . . . . . 3 . 3 2 . . . Recycling Units 6 | . 1 . . . 2 3 . . . . . . . . . . . . . . . . . . . . . . . Scanalyzers 8 | . . . . . 2 . . . . . . . . . . . . 1 . . . . . . 2 1 . 2 . Garrison Access 6 | . . . . . 1 . . . . . . 2 . . . . . . . . . . . . . 1 2 . . Terminal Hacks 87 | . 9 . 1 1 10 10 3 . 6 29 . 3 1 . . . . . 1 . . . . 5 3 1 2 2 . Record 17 | . . . 1 . . . . . 4 11 . . . . . . . . . . . . . . . 1 . . . Part Schematic 11 | . . . . . 1 . . . . 10 . . . . . . . . . . . . . . . . . . . Robot Schematic 5 | . . . . . . . . . . 5 . . . . . . . . . . . . . . . . . . . Robot Analysis 4 | . 2 . . . 2 . . . . . . . . . . . . . . . . . . . . . . . . Prototype ID Bank 8 | . . . . . 1 1 . . . 3 . . . . . . . . . . . . . 1 1 . . 1 . Open Door 8 | . . . . 1 . 3 . . 2 . . . 1 . . . . . . . . . . 1 . . . . . Branch Access Points 4 | . . . . . 1 . 1 . . . . 1 . . . . . . . . . . . 1 . . . . . Terminal Index 2 | . 1 . . . 1 . . . . . . . . . . . . . . . . . . . . . . . . Alert Level 7 | . 1 . . . 2 2 . . . . . . . . . . . . . . . . . . 2 . . . . Unreport Threat 7 | . 1 . . . 2 2 . . . . . . . . . . . . . . . . . . . . 2 . . Locate Traps 7 | . 2 . . . . 1 1 . . . . 2 . . . . . . 1 . . . . . . . . . . Maintenance Status 2 | . . . . . . . . . . . . . . . . . . . . . . . . 1 . . . 1 . Transport Status 1 | . 1 . . . . . . . . . . . . . . . . . . . . . . . . . . . . Hauler Manifests 1 | . 1 . . . . . . . . . . . . . . . . . . . . . . . . . . . . Registered Components 2 | . . . . . . . 1 . . . . . . . . . . . . . . . . 1 . . . . . Registered Prototypes 1 | . . . . . . 1 . . . . . . . . . . . . . . . . . . . . . . . Fabricator Hacks 9 | . . . . . . . . . . . . 1 . . . . . 6 . . . . . . . . 2 . . Network Status 2 | . . . . . . . . . . . . . . . . . . 1 . . . . . . . . 1 . . Load Schematic 4 | . . . . . . . . . . . . 1 . . . . . 3 . . . . . . . . . . . Build 3 | . . . . . . . . . . . . . . . . . . 2 . . . . . . . . 1 . . Repair Station Hacks 18 | . 1 . . . 5 5 4 . . . . . . . . . . . . . . . . . 1 2 . . . Scan Component 12 | . 1 . . . 3 3 3 . . . . . . . . . . . . . . . . . 1 1 . . . Repair 6 | . . . . . 2 2 1 . . . . . . . . . . . . . . . . . . 1 . . . Recycling Unit Hacks . | . . . . . . . . . . . . . . . . . . . . . . . . . . . . . . Scanalyzer 4 | . . . . . 2 . . . . . . . . . . . . 1 . . . . . . 1 . . . . Insert Component 4 | . . . . . 2 . . . . . . . . . . . . 1 . . . . . . 1 . . . . Garrison Access Hacks 2 | . . . . . 1 . . . . . . . . . . . . . . . . . . . . 1 . . . Seal Access 2 | . . . . . 1 . . . . . . . . . . . . . . . . . . . . 1 . . . Unauthorized Hacks 27 | . 5 . . . 5 3 . . . . . 1 . . . . . 4 . . . 1 . 2 . . 4 2 . Terminals 17 | . 4 . . . 3 2 . . . . . . . . . . . 1 . . . 1 . 2 . . 3 1 . Track 1 | . 1 . . . . . . . . . . . . . . . . . . . . . . . . . . . . Botnet 8 | . 2 . . . 2 1 . . . . . . . . . . . . . . . . . 1 . . 2 . . Operators 8 | . 1 . . . 1 1 . . . . . . . . . . . 1 . . . 1 . 1 . . 1 1 . Fabricators 4 | . . . . . . . . . . . . . . . . . . 3 . . . . . . . . 1 . . Report 1 | . . . . . . . . . . . . . . . . . . 1 . . . . . . . . . . . Prioritize 2 | . . . . . . . . . . . . . . . . . . 1 . . . . . . . . 1 . . Recompile 1 | . . . . . . . . . . . . . . . . . . 1 . . . . . . . . . . . Repair Stations . | . . . . . . . . . . . . . . . . . . . . . . . . . . . . . . Recycling Units 4 | . 1 . . . 2 1 . . . . . . . . . . . . . . . . . . . . . . . Tunnel 4 | . 1 . . . 2 1 . . . . . . . . . . . . . . . . . . . . . . . Scanalyzers 1 | . . . . . . . . . . . . . . . . . . . . . . . . . . . . 1 . Researchers 1 | . . . . . . . . . . . . . . . . . . . . . . . . . . . . 1 . Garrison Access 1 | . . . . . . . . . . . . 1 . . . . . . . . . . . . . . . . . Eject 1 | . . . . . . . . . . . . 1 . . . . . . . . . . . . . . . . . Data Cores Recovered 3 | . . . . . . 1 . . . . . . . . . . . . . . . . . . . . 1 1 . Used 1 | . . . . . . . . . . . . . . . . . . . . . . . . . . . . 1 . Hacking Detections 83 | . 5 . . . 11 10 8 . . . . 5 . . . . . 5 1 . . 2 3 3 7 5 12 6 . Full Trace Events 7 | . 1 . . . . 1 . . . . . 3 . . . . . . . . . . . . . 1 . 1 . Feedback Events . | . . . . . . . . . . . . . . . . . . . . . . . . . . . . . . Feedback Blocked . | . . . . . . . . . . . . . . . . . . . . . . . . . . . . . . Robot Schematics Acquired 10 | . . . . . . . . . . 5 . . . . 3 . . . . . . . . . . . 1 1 . Robots Built . | . . . . . . . . . . . . . . . . . . . . . . . . . . . . . . Authchips . | . . . . . . . . . . . . . . . . . . . . . . . . . . . . . . Time . | . . . . . . . . . . . . . . . . . . . . . . . . . . . . . . Total Robot Build Rating . | . . . . . . . . . . . . . . . . . . . . . . . . . . . . . . Part Schematics Acquired 39 | . . . . . 1 . . . . 10 . . . . 15 . . . . . . . . . 7 . 6 . . Parts Built 3 | . . . . . . . . . . . . . . . . . . 2 . . . . . . . . 1 . . Authchips 2 | . . . . . . . . . . . . . . . . . . 2 . . . . . . . . . . . Time 442 | . . . . . . . . . . . . . . . . . . 220 . . . . . . . . 222 . . Total Part Build Rating 16 | . . . . . . . . . . . . . . . . . . 7 . . . . . . . . 9 . . Parts Repaired 6 | . . . . . 2 2 1 . . . . . . . . . . . . . . . . . . 1 . . . Time 290 | . . . . . 126 120 19 . . . . . . . . . . . . . . . . . . 25 . . . Parts Recycled . | . . . . . . . . . . . . . . . . . . . . . . . . . . . . . . Recycled Matter . | . . . . . . . . . . . . . . . . . . . . . . . . . . . . . . Retrieved Matter . | . . . . . . . . . . . . . . . . . . . . . . . . . . . . . . Retrieved Components . | . . . . . . . . . . . . . . . . . . . . . . . . . . . . . . Parts Scanalyzed . | . . . . . . . . . . . . . . . . . . . . . . . . . . . . . . Part Schematics Acquired . | . . . . . . . . . . . . . . . . . . . . . . . . . . . . . . Parts Damaged . | . . . . . . . . . . . . . . . . . . . . . . . . . . . . . . Bothacking | -11 -10 -10 -10 -9 -8 -8 -7 -7 -7 -7 -6 -6 -6 -6 -6 -6 -5 -5 -5 -5 -5 -5 -4 -3 -3 -2 -2 -2 -1 ------------ Run | Scr Mat Min Exi Min Mat Sto Fac Low Low Dat Pro Fac Low Low Zio Dee Pro Fac Ext Cet Arc Hub Fac Res Qua Res Tes Sec Acc Used RIF Installer . | . . . . . . . . . . . . . . . . . . . . . . . . . . . . . . Robots Hacked 2 | . . . . . . . . . . 2 . . . . . . . . . . . . . . . . . . . Non-combat 1 | . . . . . . . . . . 1 . . . . . . . . . . . . . . . . . . . Combat 1 | . . . . . . . . . . 1 . . . . . . . . . . . . . . . . . . . Robot Hacks Applied 2 | . . . . . . . . . . 2 . . . . . . . . . . . . . . . . . . . parse_system 2 | . . . . . . . . . . 2 . . . . . . . . . . . . . . . . . . . Relay Couplers Released 24 | . . . . . . . 4 . . . . 4 . . . . . . . . . 3 . . 12 . . 1 . Ejected 4 | . . . . . . . . . . . . 4 . . . . . . . . . . . . . . . . . Machine Destruction 4 | . . . . . . . . . . . . . . . . . . . . . . 3 . . . . . 1 . Programmers 16 | . . . . . . . 4 . . . . . . . . . . . . . . . . . 12 . . . . Fabnet Peak Effective % . | . . . . . . . . . . . . . . . . . . . . . . . . . . . . . . Robots Rewired 16 | . . . . . . . . . 2 . . . . . . . . . 11 . . . 1 . . . 2 . . Allies Hacked . | . . . . . . . . . . . . . . . . . . . . . . . . . . . . . . Hacks Repelled . | . . . . . . . . . . . . . . . . . . . . . . . . . . . . . . Allies | -11 -10 -10 -10 -9 -8 -8 -7 -7 -7 -7 -6 -6 -6 -6 -6 -6 -5 -5 -5 -5 -5 -5 -4 -3 -3 -2 -2 -2 -1 -------- Run | Scr Mat Min Exi Min Mat Sto Fac Low Low Dat Pro Fac Low Low Zio Dee Pro Fac Ext Cet Arc Hub Fac Res Qua Res Tes Sec Acc Total Allies 46 | . . 6 . . . 1 . . 5 . 1 . . . . . . . 16 . . . 1 . . . 2 . 14 Largest Group 10 | . . 5 1 . . 1 . . 4 . 1 . . . . . . . 10 4 . . 1 . . . 1 . 6 Highest-Rated Group 258 | . . 82 31 . . 100 . . 109 . 96 . . . . . . . 258 129 . . 56 . . . 48 . 87 Highest-Rated Ally 100 | . . 31 31 . . 100 . . 31 . 96 . . . . . . . 39 39 . . 56 . . . 48 . 15 Total Orders 240 | . . . . 1 7 6 18 3 5 1 2 20 7 8 3 . 1 9 11 4 1 17 7 11 11 50 31 6 . STAY 14 | . . . . . . . 1 . 1 . . . . . . . . . . . . 1 . 1 1 4 4 1 . FOLLOW 10 | . . . . . . . . . . . . . 1 . . . . . . . . . . 2 1 3 3 . . EXPLORE 3 | . . . . . . . . . . . 1 . . . 1 . . . . . . . . . . . 1 . . RETURN 213 | . . . . 1 7 6 17 3 4 1 1 20 6 8 2 . 1 9 11 4 1 16 7 8 9 43 23 5 . Ally Attacks 234 | . . 26 . . . 27 . . 52 . 15 . . . . . . . 46 16 . . 21 . . . 8 . 23 Total Damage 4220 | . . 383 . . . 974 . . 558 . 238 . . . . . . . 810 345 . . 378 . . . 169 . 365 Kills 40 | . . 6 . . . 11 . . 7 . 2 . . . . . . . 6 3 . . 1 . . . . . 4 Allies Corrupted 2 | . . . . . . . . . . . . . . . . . . . . . . . . . . 2 . . . Allies Melted . | . . . . . . . . . . . . . . . . . . . . . . . . . . . . . . Intel | -11 -10 -10 -10 -9 -8 -8 -7 -7 -7 -7 -6 -6 -6 -6 -6 -6 -5 -5 -5 -5 -5 -5 -4 -3 -3 -2 -2 -2 -1 ------- Run | Scr Mat Min Exi Min Mat Sto Fac Low Low Dat Pro Fac Low Low Zio Dee Pro Fac Ext Cet Arc Hub Fac Res Qua Res Tes Sec Acc Robot Analysis Total 4 | . 2 . . . 2 . . . . . . . . . . . . . . . . . . . . . . . . Derelict Logs Recovered 11 | . . 1 . . . . . 2 1 . 1 . 2 1 2 . 1 . . . . . . . . . . . . Drone Launches 236 | . . . . 2 6 7 18 4 7 . 2 24 6 9 2 . 3 10 15 3 . 18 12 8 7 44 23 6 . Drone Recoveries 224 | . . . . 1 7 6 18 4 5 1 2 24 6 8 3 . 1 9 13 3 1 18 10 7 8 41 23 5 . Exploration | -11 -10 -10 -10 -9 -8 -8 -7 -7 -7 -7 -6 -6 -6 -6 -6 -6 -5 -5 -5 -5 -5 -5 -4 -3 -3 -2 -2 -2 -1 ------------- Run | Scr Mat Min Exi Min Mat Sto Fac Low Low Dat Pro Fac Low Low Zio Dee Pro Fac Ext Cet Arc Hub Fac Res Qua Res Tes Sec Acc Turns Passed 41750 | 71 844 1247 208 859 2442 1677 1685 1230 2104 207 1977 1447 926 759 1913 3181 1320 1296 1590 264 614 955 531 709 4217 2948 2679 1650 200 Spaces Moved 18758 | 39 414 746 131 362 1245 800 718 850 929 91 851 584 521 449 1030 1517 632 514 612 90 48 302 192 267 1577 1087 1038 753 369 Core 2 | 2 . . . . . . . . . . . . . . . . . . . . . . . . . . . . . Treads 11984 | 37 414 746 131 362 774 800 718 376 10 . . 559 521 449 1030 1406 . . . . . . 12 100 869 1087 1038 545 . Legs 4438 | . . . . . 471 . . . . . 1 25 . . . 111 632 514 612 90 48 302 180 167 708 . . 208 369 Wheels 2334 | . . . . . . . . 474 919 91 850 . . . . . . . . . . . . . . . . . . Hover . | . . . . . . . . . . . . . . . . . . . . . . . . . . . . . . Flight . | . . . . . . . . . . . . . . . . . . . . . . . . . . . . . . Fastest Speed 30 | 50 160 160 160 160 130 155 152 115 115 205 205 156 160 160 160 160 195 195 195 195 210 180 180 179 179 145 145 30 30 Average Speed 173 | 154 160 160 160 227 149 161 162 135 195 219 219 196 160 160 160 165 195 195 207 204 220 232 210 214 211 182 152 120 30 Slowest Speed 1170 | 160 160 160 160 240 240 163 232 232 240 220 1170 305 160 160 160 400 195 195 275 210 240 240 360 270 305 225 232 160 30 Overloaded Moves . | . . . . . . . . . . . . . . . . . . . . . . . . . . . . . . Propulsion Burnouts . | . . . . . . . . . . . . . . . . . . . . . . . . . . . . . . Robots Hopped 2 | . . . . . . . . . . . . . . . . . . . 2 . . . . . . . . . . Cave-ins Triggered 2 | . . . . . . . . . . . . . . . . . . . . . . . 1 . . . . . 1 Exploration Rate (%) 59 | 3 63 98 49 94 89 93 30 88 95 75 92 23 72 65 88 87 68 12 65 51 60 31 8 8 91 37 92 50 17 Regions Visited 29 Branch Regions 20 Pre-discovered Areas 10 | . 1 . 1 . 2 2 . . . 1 1 . 1 . 1 . . . . . . . . . . . . . . Known Exits Taken 16 | . . . . 1 1 1 1 . . 1 1 1 1 1 . . 1 1 . 1 . 1 1 1 . . . 1 . Unknown Exits Taken 13 | 1 1 1 1 . . . . 1 1 . . . . . 1 1 . . 1 . 1 . . . 1 1 1 . . Scrap Searched 23 | . . 1 . 2 . . . 4 3 . 3 . 3 2 3 . 2 . . . . . . . . . . . . Spaces Dug 621 | . 8 2 . . 37 14 30 17 5 . 51 4 . 32 2 56 53 46 9 . . 27 19 23 34 78 10 36 28 Terrain Destroyed 2054 | . 8 59 . . 37 15 149 28 38 . 89 87 76 47 2 166 85 134 27 4 . 288 43 46 54 226 121 166 59 Melee 65 | . 2 2 . . 5 2 10 1 . . 3 4 . . 2 . . . . . . . . 10 . 3 8 13 . Projectile 501 | . . . . . . 1 17 . . . 2 10 3 2 . 1 19 62 27 4 . 30 20 13 13 143 29 46 59 AOE 1485 | . 6 57 . . 32 12 122 27 38 . 84 72 73 45 . 165 66 72 . . . 258 23 23 41 80 82 107 . Terrain Rammed . | . . . . . . . . . . . . . . . . . . . . . . . . . . . . . . Walls Destroyed . | . . . . . . . . . . . . . . . . . . . . . . . . . . . . . . Machines Disabled . | . . . . . . . . . . . . . . . . . . . . . . . . . . . . . . Actions | -11 -10 -10 -10 -9 -8 -8 -7 -7 -7 -7 -6 -6 -6 -6 -6 -6 -5 -5 -5 -5 -5 -5 -4 -3 -3 -2 -2 -2 -1 --------- Run | Scr Mat Min Exi Min Mat Sto Fac Low Low Dat Pro Fac Low Low Zio Dee Pro Fac Ext Cet Arc Hub Fac Res Qua Res Tes Sec Acc Total 25284 | 47 505 782 130 389 1614 1090 1026 908 1157 97 947 787 579 469 1278 2083 684 677 899 147 557 437 297 359 2349 1642 1770 1152 426 Wait 2922 | . 14 7 . 5 139 167 94 27 75 2 43 39 13 3 204 343 14 45 146 5 492 17 23 34 443 118 320 60 30 Move 18723 | 38 413 745 130 361 1244 799 717 849 928 90 850 583 520 448 1029 1516 631 513 608 89 47 301 190 266 1576 1086 1037 752 367 Hop 1 | . . . . . . . . . . . . . . . . . . . 1 . . . . . . . . . . Pick Up 251 | 3 15 2 . 5 18 4 19 1 21 . 8 18 1 . 5 28 1 4 3 3 . 4 6 3 36 9 22 12 . Fast Attach 294 | 6 1 1 . 1 16 9 10 6 13 . 2 11 2 . 7 15 2 4 2 9 2 8 7 3 44 40 44 27 2 Attach 149 | . 2 . . . 5 . 14 4 2 . 4 11 . . 1 8 . 5 10 4 . 5 14 3 16 10 17 13 1 Detach 173 | . . . . . 3 . 2 3 4 . 2 5 1 . 1 7 3 5 18 11 9 10 17 3 30 14 19 6 . Swap 484 | . 6 11 . 5 38 24 40 3 15 3 10 38 22 9 7 22 11 17 3 1 1 19 2 6 36 55 49 31 . Drop 416 | . 3 5 . 6 31 18 6 1 12 . 7 33 5 . 12 49 3 4 4 10 2 9 2 1 73 41 55 24 . Fire 1173 | . 32 6 . 1 94 36 95 5 13 . 17 40 13 9 1 52 19 77 19 15 4 60 25 14 84 197 107 113 25 Melee 437 | . 15 5 . 5 19 18 19 9 30 2 4 9 2 . 11 14 . 2 . . . . 1 26 . 69 86 91 . Ram 4 | . . . . . . . . . . . . . . . . . . . . . . . . . . . . 4 . Kick 17 | . . . . . 5 . . . . . . . . . . . . 1 2 . . 4 2 . . . . 3 . Crush 36 | . 4 . . . 2 15 10 . . . . . . . . . . . . . . . . . . 3 1 1 . Escape Stasis 25 | . . . . . . . . . . . . . . . . . . . 8 . . . 1 . . . . 15 1 Rewire 179 | . . . . . . . . . 44 . . . . . . 29 . . 75 . . . 7 . 11 . 13 . . Trap . | . . . . . . . . . . . . . . . . . . . . . . . . . . . . . . Miscellaneous . | . . . . . . . . . . . . . . . . . . . . . . . . . . . . . . Route ------- -11/Scrapyard -10/Materials (discovered 3 exits: [*Mat] / [*Min x2]) -10/Mines (discovered 3 exits: [*Mat x2] / *Exi) -10/Exiles -9/Mines (discovered 2 exits: *Mat x2) -8/Materials (discovered 4 exits: *Fac x2 / *Sto x2) -8/Storage (discovered 2 exits: *Fac / [*Rec]) -7/Factory (discovered 2 exits: *Low x2) -7/Lower Caves -7/Lower Caves (discovered 2 exits: *Fac / *Dat) -7/Data Miner -6/Proximity Caves -6/Factory (discovered 5 exits: *Fac x3 / *Low x2) -6/Lower Caves -6/Lower Caves (discovered 2 exits: *Fac / *Zio) -6/Zion (discovered 2 exits: [*Dee] / [*Pro]) -6/Deep Caves -5/Proximity Caves -5/Factory (discovered 4 exits: *Fac x2 / *Ext x2) -5/Extension (discovered 2 exits: *Fac / [*Cet]) -5/Cetus -5/Archives -5/Hub_04(d) -4/Factory -3/Research (discovered 3 exits: Arm / *Qua x2) -3/Quarantine -2/Research (discovered 2 exits: *Acc / *Tes) -2/Testing -2/Section 7 -1/Access To Fleet Rendezvous History --------- Turn | Location | Event 28 | -11/Scrapyard | Discovered new exit (range 15) 72 | -11/Scrapyard | Entered Materials 301 | -10/Materials | Discovered new exit (range 9) 308 | -10/Materials | Build established: Mutant 537 | -10/Materials | Discovered new exit (range 13) 613 | -10/Materials | Core integrity fell below 50% 802 | -10/Materials | Discovered new exit (range 11) 916 | -10/Materials | Entered Mines 952 | -10/Mines | Deemed a non-threat by the Exiles lab entrance 1020 | -10/Mines | Joined a pair of Derelicts in attacking an 0b10 outpost 1205 | -10/Mines | Learned 2 Materials zone layouts 1252 | -10/Mines | Assisted by bots powering up and referring to "LRC-V3" 1345 | -10/Mines | Discovered new exit (range 13) 1423 | -10/Mines | Found a hidden stash of uninstalled traps 1543 | -10/Mines | Discovered new exit (range 9) 1969 | -10/Mines | Received a Mining Laser from a helpful Derelict 2152 | -10/Mines | Discovered new exit (range 5) 2163 | -10/Mines | Entered Exiles 2163 | -10/Exiles | Accompanied by 1 ally 2200 | -10/Exiles | Met 8R-AWN 2231 | -10/Exiles | Met EX-HEX 2291 | -10/Exiles | Met EX-DEC 2299 | -10/Exiles | Learned location of Zion (-6) 2357 | -10/Exiles | Discovered new exit (range 11) 2371 | -10/Exiles | Entered Mines 2450 | -9/Mines | Found the Drone Emporium 2458 | -9/Mines | Found Prototype Device 2458 | -9/Mines | Identified Sensor Drone Bay 2705 | -9/Mines | Received a Rocket Launcher from a helpful Derelict 2848 | -9/Mines | A weapon hastily lodged in a ceiling crevice suddenly fell to the ground 2886 | -9/Mines | Discovered new exit (range 12) 2916 | -9/Mines | Identified exit to Materials 3017 | -9/Mines | Discovered exit to Materials (range 8) 3230 | -9/Mines | Entered Materials 3230 | -8/Materials | Accompanied by 1 ally 3230 | -8/Materials | Evolved 4 slots: Propulsion x2, Utility x1, Weapon x1 3536 | -8/Materials | Build established: Gunner 3639 | -8/Materials | Identified exit to Storage 4040 | -8/Materials | Repaired Broken Enh. Nuclear Core? 4362 | -8/Materials | Discovered new exit (range 15) 4603 | -8/Materials | Build established: Scavenger-Gunner 4891 | -8/Materials | Repaired Insulated Plating? 5145 | -8/Materials | Discovered new exit (range 16) 5672 | -8/Materials | Entered Storage 6321 | -8/Storage | Used back door to open Recycling access 6321 | -8/Storage | Discovered new exit (range 5) 6328 | -8/Storage | Repaired Enh. Autogun? 6340 | -8/Storage | Repaired Enh. Autogun 6478 | -8/Storage | Discovered new exit (range 15) 6486 | -8/Storage | Met 01-MTF 6790 | -8/Storage | Build established: Mutant 7074 | -8/Storage | Found 01-MTF's Shockpuncher 7345 | -8/Storage | Build established: Gunner 7348 | -8/Storage | Identified exit to Factory 7349 | -8/Storage | Entered Factory 7349 | -7/Factory | Accompanied by 1 ally 7349 | -7/Factory | Evolved 2 slots: Utility x2 7590 | -7/Factory | Repaired Hrd. Medium Armor Plating 7866 | -7/Factory | Build established: Mutant 8153 | -7/Factory | Cargo convoy interrupted 8287 | -7/Factory | Lost 6 parts (1p1n1u3w) 8403 | -7/Factory | Identified exit to Lower Caves 8581 | -7/Factory | System corruption reached 10% 8883 | -7/Factory | Core integrity fell below 50% 8949 | -7/Factory | Destroyed 12 combat bots 8951 | -7/Factory | Lost 6 parts (1p2n2u1w) 9034 | -7/Factory | Entered Lower Caves 9063 | -7/Lower Caves | Lost 4 parts (1p1n2u) 9701 | -7/Lower Caves | Learned Factory stockpile data 9855 | -7/Lower Caves | Encountered a Warlord checkpoint 9867 | -7/Lower Caves | Learned Factory stockpile data 10099 | -7/Lower Caves | Build established: Derelict-Mutant 10160 | -7/Lower Caves | Discovered new exit (range 6) 10264 | -7/Lower Caves | Entered another Lower Caves area 10266 | -7/Lower Caves | Attracted the attention of an 0b10 outpost 10303 | -7/Lower Caves | Destroyed 8 combat bots 10565 | -7/Lower Caves | Build established: Mutant 10639 | -7/Lower Caves | Discovered new exit (range 5) 10673 | -7/Lower Caves | Identified exit to Factory 10974 | -7/Lower Caves | Build established: Hauler-Mutant 11104 | -7/Lower Caves | Attracted the attention of an 0b10 checkpoint 11465 | -7/Lower Caves | Learned Factory emergency access door positions 11474 | -7/Lower Caves | A Commander dispatched an escort 11487 | -7/Lower Caves | Learned 8 Factory zone layouts 11487 | -7/Lower Caves | Learned Research garrison access intel 12292 | -7/Lower Caves | Discovered new exit (range 10) 12368 | -7/Lower Caves | Entered Data Miner 12368 | -7/Data Miner | Accompanied by 3 allies 12368 | -7/Data Miner | Discovered new exit (range 6) 12369 | -7/Data Miner | Commander's escort returned to base 12369 | -7/Data Miner | Commander's escort returned to base 12387 | -7/Data Miner | Identified exit to Proximity Caves 12412 | -7/Data Miner | Met Data Miner 12456 | -7/Data Miner | Learned location of Section 7 (-2) 12456 | -7/Data Miner | Acquired the access code to Warlord's prototype stash 12487 | -7/Data Miner | Received God Mode back door access code from Data Miner 12575 | -7/Data Miner | Entered Proximity Caves 12586 | -6/Proximity Caves | Core integrity fell below 20% 12937 | -6/Proximity Caves | Learned location of Extension (-5) 12941 | -6/Proximity Caves | Escorted by Enhanced Grunt 14287 | -6/Proximity Caves | Discovered exit to Factory (range 17) 14546 | -6/Proximity Caves | Found Prototype Device 14551 | -6/Proximity Caves | Attracted the attention of an 0b10 outpost 14552 | -6/Proximity Caves | Entered Factory 14552 | -6/Factory | Evolved 2 slots: Power x1, Utility x1 14553 | -6/Factory | Identified exit to Factory 14560 | -6/Factory | Identified Exp. Thermal Shield 14576 | -6/Factory | Discovered exit to Factory (range 14) 14866 | -6/Factory | Incoming investigation squad redirected 15135 | -6/Factory | Identified exit to Lower Caves 15657 | -6/Factory | Garrison activated, responded to threat 15952 | -6/Factory | First assault squad dispatched 15999 | -6/Factory | Entered Lower Caves 16172 | -6/Lower Caves | Encountered a Warlord checkpoint 16269 | -6/Lower Caves | Spotted B-75 Beast 16553 | -6/Lower Caves | Learned Factory security intel 16743 | -6/Lower Caves | Discovered new exit (range 14) 16770 | -6/Lower Caves | Identified exit to Lower Caves 16925 | -6/Lower Caves | Entered another Lower Caves area 17041 | -6/Lower Caves | Build established: Derelict-Gunner 17068 | -6/Lower Caves | Discovered exit to Factory (range 14) 17297 | -6/Lower Caves | Attracted the attention of an 0b10 checkpoint 17436 | -6/Lower Caves | Learned location of 2 exits from Factory 17634 | -6/Lower Caves | Discovered new exit (range 6) 17682 | -6/Lower Caves | Identified exit to Zion 17684 | -6/Lower Caves | Entered Zion 17684 | -6/Zion | Accompanied by 1 ally 17742 | -6/Zion | System corruption cleaned by Quarantine Array 17833 | -6/Zion | Discovered new exit (range 11) 18198 | -6/Zion | Learned Factory security intel 18379 | -6/Zion | Discovered new exit (range 5) 18380 | -6/Zion | Saw the warning signs outside the Deep Caves entrance 18497 | -6/Zion | Build established: Scavenger-Mutant 18648 | -6/Zion | Learned location of Warlord (-5) 18705 | -6/Zion | Learned Factory interactive machine intel 18917 | -6/Zion | Build established: Derelict-Mutant 19046 | -6/Zion | Visited the Megawrench Repair Shop 19046 | -6/Zion | Megawrench repaired 15 parts 19423 | -6/Zion | Found Prototype Device 19423 | -6/Zion | Identified Mobile Refinery Mk. CCLXVII 19576 | -6/Zion | Build established: Mutant 19597 | -6/Zion | Entered Deep Caves 19889 | -6/Deep Caves | Z-Facility disabled 19903 | -6/Deep Caves | Attacked by Z-Imprinter 20318 | -6/Deep Caves | Found Prototype Protection 20318 | -6/Deep Caves | Identified Zio. Weapon Casing 20379 | -6/Deep Caves | Build established: Scavenger-Tank 20439 | -6/Deep Caves | Found Zio. Weapon Casing 20515 | -6/Deep Caves | Found Prototype Protection 20515 | -6/Deep Caves | Identified Zio. Heavy Carapace 20586 | -6/Deep Caves | Found Zio. Weapon Casing 20925 | -6/Deep Caves | Build established: Tank 21184 | -6/Deep Caves | Discovered new exit (range 7) 21743 | -6/Deep Caves | Spotted as-15702 21780 | -6/Deep Caves | Destroyed as-15702 21827 | -6/Deep Caves | Triggered Deep Caves wall 21827 | -6/Deep Caves | Destroyed AS-12929 21831 | -6/Deep Caves | Destroyed AS-21181 21852 | -6/Deep Caves | Destroyed 35 combat bots 21876 | -6/Deep Caves | Spotted as-04883 21897 | -6/Deep Caves | Destroyed as-04883 21975 | -6/Deep Caves | Found Prototype Processor 21984 | -6/Deep Caves | Exposed GOLEM chamber 21989 | -6/Deep Caves | Found GOLEM Unit 22009 | -6/Deep Caves | Found GOLEM Unit 22418 | -6/Deep Caves | Build established: Golem 22778 | -6/Deep Caves | Entered Proximity Caves 23021 | -5/Proximity Caves | Attracted the attention of an 0b10 checkpoint 23029 | -5/Proximity Caves | Core integrity fell below 50% 23832 | -5/Proximity Caves | Discovered exit to Factory (range 4) 23858 | -5/Proximity Caves | Learned Factory security intel 24098 | -5/Proximity Caves | Entered Factory 24098 | -5/Factory | Accompanied by 1 ally 24098 | -5/Factory | Evolved 2 slots: Utility x2 24099 | -5/Factory | Identified exit to Extension 24099 | -5/Factory | Identified exit to Factory 24102 | -5/Factory | Loaded intel: 54 interactive machine locations 24227 | -5/Factory | Incoming investigation squad redirected 24319 | -5/Factory | Fabricated Combat Drone Bay? 24435 | -5/Factory | Discovered exit to Factory (range 5) 24848 | -5/Factory | Fabricated Huge Storage Unit (x1) 25320 | -5/Factory | Identified Modified TNC 25365 | -5/Factory | Discovered exit to Extension (range 16) 25394 | -5/Factory | Entered Extension 25791 | -5/Extension | Energy Cycler disabled 25794 | -5/Extension | Rescued a captive Derelict 25795 | -5/Extension | Rescued a captive Derelict 25795 | -5/Extension | Rescued a captive Derelict 25796 | -5/Extension | Rescued a captive Derelict 25797 | -5/Extension | Rescued a captive Derelict 25798 | -5/Extension | Rescued a captive Derelict 25798 | -5/Extension | Rescued a captive Derelict 26249 | -5/Extension | Build established: Commander-Tank 26593 | -5/Extension | Build established: Tank 26939 | -5/Extension | Discovered exit to Factory (range 10) 26941 | -5/Extension | Discovered new exit (range 6) 26984 | -5/Extension | Entered Cetus 26984 | -5/Cetus | Accompanied by 5 allies 27016 | -5/Cetus | Spotted Cetus Guard 27016 | -5/Cetus | Spotted Cetus Guard 27019 | -5/Cetus | Allies destroyed Cetus Guard 27020 | -5/Cetus | Spotted Cetus Guard 27023 | -5/Cetus | Allies destroyed Cetus Guard 27024 | -5/Cetus | Spotted Cetus Guard 27040 | -5/Cetus | Destroyed Cetus Guard 27054 | -5/Cetus | Destroyed Cetus Guard 27207 | -5/Cetus | Discovered new exit (range 15) 27248 | -5/Cetus | Identified exit to Archives 27248 | -5/Cetus | Entered Archives 27248 | -5/Archives | Accompanied by 1 ally 27584 | -5/Archives | Build established: Golem 27813 | -5/Archives | Met Zhirov 27819 | -5/Archives | Reinforcements dispatched to Archives 27827 | -5/Archives | Discovered new exit (range 16) 27862 | -5/Archives | Entered Hub_04(d) 28024 | -5/Hub_04(d) | Disrupted transfer network 28330 | -5/Hub_04(d) | Discovered exit to Factory (range 5) 28503 | -5/Hub_04(d) | Build established: Mutant 28665 | -5/Hub_04(d) | Network Hub disabled 28711 | -5/Hub_04(d) | Incoming assault squad redirected 28716 | -5/Hub_04(d) | Spotted Lightning 28717 | -5/Hub_04(d) | Spotted Lightning 28720 | -5/Hub_04(d) | Spotted Lightning 28762 | -5/Hub_04(d) | First assault squad dispatched 28774 | -5/Hub_04(d) | System corruption reached 10% 28788 | -5/Hub_04(d) | Incoming assault squad redirected 28809 | -5/Hub_04(d) | Core integrity fell below 50% 28817 | -5/Hub_04(d) | Entered Factory 28817 | -4/Factory | Evolved 2 slots: Utility x2 28836 | -4/Factory | Lost 10 parts (1p1n6u2w) 29218 | -4/Factory | Crushed by falling debris 29242 | -4/Factory | Discovered new exit (range 15) 29300 | -4/Factory | Identified exit to Research 29348 | -4/Factory | Entered Research 29348 | -3/Research | Evolved 2 slots: Propulsion x2 29349 | -3/Research | Loaded intel: 4 garrison access locations 29368 | -3/Research | Identified exit to Armory 29368 | -3/Research | Identified exit to Quarantine 29377 | -3/Research | Lost 7 parts (1p1n4u1w) 29703 | -3/Research | Lost 3 parts (1n1u1w) 29967 | -3/Research | Found Antimissile System 30034 | -3/Research | Build established: Golem 30057 | -3/Research | Entered Quarantine 30057 | -3/Quarantine | Accompanied by 1 ally 30192 | -3/Quarantine | Found Alien Artifact 30192 | -3/Quarantine | Identified Phase Armor 30250 | -3/Quarantine | Cryocooling Duct disabled 30252 | -3/Quarantine | Cryocooling Duct disabled 30265 | -3/Quarantine | Ambient heat levels rising (+20) 30265 | -3/Quarantine | Non-combat units ordered to evacuate 30267 | -3/Quarantine | Ambient heat levels rising (+20) 30267 | -3/Quarantine | Combat units ordered to evacuate 30367 | -3/Quarantine | Quarantine Guard activated 30382 | -3/Quarantine | Build established: Mutant 30437 | -3/Quarantine | Spotted Quarantine Guard 30453 | -3/Quarantine | Destroyed Quarantine Guard 30453 | -3/Quarantine | Spotted Quarantine Guard 30473 | -3/Quarantine | Spotted Quarantine Guard 30473 | -3/Quarantine | Spotted Quarantine Guard 30493 | -3/Quarantine | Spotted Quarantine Guard 30520 | -3/Quarantine | Destroyed Quarantine Guard 30528 | -3/Quarantine | Destroyed Quarantine Guard 30560 | -3/Quarantine | Destroyed Quarantine Guard 30568 | -3/Quarantine | Lost 4 parts (1n2u1w) 30571 | -3/Quarantine | Core integrity fell below 50% 30577 | -3/Quarantine | Destroyed Quarantine Guard 31013 | -3/Quarantine | Found Alien Artifact 31013 | -3/Quarantine | Identified Subatomic Replicator 31193 | -3/Quarantine | Found Alien Energy Cannon 31193 | -3/Quarantine | Identified Core Cannon 31221 | -3/Quarantine | Found Alien Impact Weapon 31221 | -3/Quarantine | Identified Core Stripper 31369 | -3/Quarantine | Spotted Quarantine Guard 31380 | -3/Quarantine | Destroyed Quarantine Guard 31422 | -3/Quarantine | Found Alien Artifact 31422 | -3/Quarantine | Identified Phase Redirector 31457 | -3/Quarantine | Spotted Quarantine Guard 31495 | -3/Quarantine | Destroyed Quarantine Guard 31537 | -3/Quarantine | Found Alien Slashing Weapon 31537 | -3/Quarantine | Identified Sigix Broadsword 31833 | -3/Quarantine | Found Alien Reactor 31833 | -3/Quarantine | Identified Matter Drive 31855 | -3/Quarantine | Build established: Golem 31989 | -3/Quarantine | Spotted Quarantine Guard 32012 | -3/Quarantine | Destroyed Quarantine Guard 32322 | -3/Quarantine | Build established: Scavenger-Golem 33200 | -3/Quarantine | Found Prototype Device 33200 | -3/Quarantine | Identified Exp. Shield Generator 33271 | -3/Quarantine | Spotted Quarantine Guard 33319 | -3/Quarantine | Core integrity fell below 20% 33326 | -3/Quarantine | Destroyed Quarantine Guard 33434 | -3/Quarantine | Build established: Scavenger-Mutant 33706 | -3/Quarantine | Found Alien Artifact 33706 | -3/Quarantine | Identified Core Reset Matrix 33706 | -3/Quarantine | Used Core Reset Matrix 33710 | -3/Quarantine | Detected hypermatrix surge 33710 | -3/Quarantine | Sensed 12 artifacts in vicinity 34006 | -3/Quarantine | Found Transdimensional Reconstructor 34224 | -3/Quarantine | Discovered new exit (range 6) 34224 | -3/Quarantine | Spotted Quarantine Guard 34246 | -3/Quarantine | Destroyed Quarantine Guard 34272 | -3/Quarantine | System corruption reached 10% 34274 | -3/Quarantine | Entered Research 34274 | -2/Research | Evolved 2 slots: Power x1, Weapon x1 34361 | -2/Research | Repaired Lrn. Missile Launcher 34560 | -2/Research | Build established: Generator-Mutant 35372 | -2/Research | System corruption reached 10% 35609 | -2/Research | Spotted B-90 Cyclops 35669 | -2/Research | Found Prototype Launcher 35669 | -2/Research | Identified Point Singularity Launcher 35688 | -2/Research | Found Unknown Device 35688 | -2/Research | Identified Launcher Loader 35858 | -2/Research | Found Prototype Device 35858 | -2/Research | Identified Exp. Focal Shield 36313 | -2/Research | First assault squad dispatched 36334 | -2/Research | Incoming assault squad redirected 36700 | -2/Research | Discovered new exit (range 15) 36734 | -2/Research | Identified exit to Access 36910 | -2/Research | Destroyed 10 combat bots 37171 | -2/Research | Discovered new exit (range 16) 37222 | -2/Research | Entered Testing 37421 | -2/Testing | Found Prototype Energy Gun 37421 | -2/Testing | Identified Hyp. EM Gauss Rifle 37472 | -2/Testing | First assault squad dispatched 37551 | -2/Testing | Spotted PH-MK6EYB5VU7 37564 | -2/Testing | Destroyed PH-MK6EYB5VU7 37604 | -2/Testing | System corruption reached 30% 37634 | -2/Testing | Lost 3 parts (1p2u) 37635 | -2/Testing | Fabricated Exp. Force Field? 37652 | -2/Testing | Found Prototype Processor 37662 | -2/Testing | Identified Exp. Targeting Computer 37670 | -2/Testing | Found Prototype Device 37670 | -2/Testing | Identified Exp. Phase Shifter 37683 | -2/Testing | Found Prototype Reactor 37683 | -2/Testing | Identified Zero-point Reactor 37686 | -2/Testing | Found Zero-point Reactor 37912 | -2/Testing | Scanned by Researcher 37984 | -2/Testing | Found Prototype Device 37984 | -2/Testing | Identified Exp. Thermal Shield 38250 | -2/Testing | Garrison activated, responded to threat 38661 | -2/Testing | Garrison activated, responded to threat 38706 | -2/Testing | Found Prototype Device 38706 | -2/Testing | Identified AEGIS Remote Shield 38849 | -2/Testing | Used Subatomic Replicator to replicate Zero-point Reactor 39071 | -2/Testing | Spotted Alpha 7 39103 | -2/Testing | Destroyed Alpha 7 39123 | -2/Testing | Found Prototype Processor 39123 | -2/Testing | Identified Exp. Target Analyzer 39148 | -2/Testing | Found Prototype Device 39148 | -2/Testing | Identified Exp. ECM Suite 39194 | -2/Testing | Found Prototype Ballistic Gun 39195 | -2/Testing | Identified Multirail 39241 | -2/Testing | Incoming assault squad redirected 39391 | -2/Testing | Spotted Fortress 39397 | -2/Testing | Destroyed Fortress 39407 | -2/Testing | Found Prototype Device 39407 | -2/Testing | Identified Exp. EM Disruption Field 39416 | -2/Testing | Found Prototype Reactor 39416 | -2/Testing | Identified Vortex Chain Reactor 39423 | -2/Testing | Found Prototype Device 39423 | -2/Testing | Identified Thermal Barrier 39427 | -2/Testing | Found Prototype Protection 39427 | -2/Testing | Identified Centrium Heavy Armor Plating 39537 | -2/Testing | Discovered new exit (range 6) 39901 | -2/Testing | Entered Section 7 39902 | -2/Section 7 | Sensed 21 artifacts in vicinity 39980 | -2/Section 7 | Incoming investigation squad redirected 40144 | -2/Section 7 | Garrison activated, responded to threat 40197 | -2/Section 7 | First assault squad dispatched 40217 | -2/Section 7 | Incoming assault squad redirected 40224 | -2/Section 7 | Incoming assault squad redirected 40370 | -2/Section 7 | Spotted S7 Guard 40395 | -2/Section 7 | Destroyed S7 Guard 40430 | -2/Section 7 | Destroyed 7 combat bots 40434 | -2/Section 7 | Found Prototype Protection 40434 | -2/Section 7 | Identified Hvy. Regenerative Plating 40516 | -2/Section 7 | Found Prototype Launcher 40516 | -2/Section 7 | Identified Adv. Micro-nuke Launcher 40549 | -2/Section 7 | Found Prototype Launcher 40549 | -2/Section 7 | Identified Ragnarok Missile Launcher 40646 | -2/Section 7 | Spotted B-90 Cyclops 40673 | -2/Section 7 | Incoming assault squad redirected 40685 | -2/Section 7 | Destroyed B-90 Cyclops 40706 | -2/Section 7 | Destroyed 7 combat bots 40798 | -2/Section 7 | Found Integrated Dissipator 40798 | -2/Section 7 | Installed Integrated Dissipator, increased core heat dissipation (+20) 40914 | -2/Section 7 | High security lockdown imminent 40956 | -2/Section 7 | Destroyed 8 combat bots 40994 | -2/Section 7 | High security lockdown engaged 40997 | -2/Section 7 | Spotted Executioner 40999 | -2/Section 7 | Spotted Executioner 41036 | -2/Section 7 | Destroyed Executioner 41043 | -2/Section 7 | Destroyed Executioner 41062 | -2/Section 7 | Found Prototype Processor 41062 | -2/Section 7 | Identified Exp. Core Analyzer 41064 | -2/Section 7 | Destroyed 7 combat bots 41067 | -2/Section 7 | Found Exp. Targeting Computer 41102 | -2/Section 7 | Destroyed 13 combat bots 41127 | -2/Section 7 | Lost 3 parts (1p2u) 41179 | -2/Section 7 | Scanned by Researcher 41181 | -2/Section 7 | Destroyed Investigator 41207 | -2/Section 7 | Found Transdimensional Reconstructor 41249 | -2/Section 7 | Found Prototype Launcher 41249 | -2/Section 7 | Identified Containment Facilitator 41253 | -2/Section 7 | Destroyed 18 combat bots 41387 | -2/Section 7 | Destroyed 19 combat bots 41424 | -2/Section 7 | Integrated with Sigix Exoskeleton 41454 | -2/Section 7 | Intercept squad dispatched 41464 | -2/Section 7 | Spotted Tracker 41467 | -2/Section 7 | Spotted Tracker 41477 | -2/Section 7 | Spotted Combat Programmer 41487 | -2/Section 7 | Spotted Executioner 41490 | -2/Section 7 | Spotted Combat Programmer 41490 | -2/Section 7 | Spotted Executioner 41490 | -2/Section 7 | Spotted Investigator 41492 | -2/Section 7 | Spotted Striker 41492 | -2/Section 7 | Spotted Striker 41508 | -2/Section 7 | Core integrity fell below 50% 41511 | -2/Section 7 | Spotted Striker 41512 | -2/Section 7 | Sigix Exoskeleton integrity reduced to 80% 41532 | -2/Section 7 | Spotted S7 Guard 41541 | -2/Section 7 | Discovered exit to Access (range 18) 41546 | -2/Section 7 | Destroyed Tracker 41551 | -2/Section 7 | Entered Access 41551 | -1/Access | Evolved 2 slots: Utility x2 41556 | -1/Access | Emitted hypermatrix ping 41561 | -1/Access | Assembled emerged from beneath the floor 41618 | -1/Access | Spotted B-99 Colossus 41636 | -1/Access | Crushed by falling debris 41699 | -1/Access | Build established: Alien-Sigix 41729 | -1/Access | Assembled emerged from beneath the floor 41735 | -1/Access | Spotted B-99 Colossus 41738 | -1/Access | Spotted B-99 Colossus 41744 | -1/Access | Discovered new exit (range 16) 41751 | *** | Heading to fleet! Last Messages --------------- 41742_ Slug penetrates Wall. 41742_ Penetrated by Slug. 41742_ Slug penetrates Wall. 41744_ EXIT=FOUND 41745_ Penetrated by Slug. 41745_ B-99 Colossus suffers critical hit (Destroy). 41745_ Penetrated by Slug. 41745_ Slug penetrates Sealed Heavy Doors. 41745_ Penetrated by Slug. 41745_ Slug penetrates B-99 Colossus. 41746_ Acquired 16 matter. 41747_ Detected hypermatrix ping. 41747_ Quantum Shear penetrates Main Access Shell. 41747_ Main Access Shell breached. 41747_ Quantum Shear penetrates Sealed Barrier. 41749_ Slug penetrates Sealed Heavy Doors. [Achievement: Rambo] [Achievement: Home At Last?] [Achievement: Winner's Signature] [Achievement: Victory By Combat] Map ----- +----------------------------------------------------+ | ##+####### # # ###??????? | | / # # ##???????? | | #### # # ##???????? | | #### #% ^^# ###??????? | | ################# # ##???????? | | ################" / ##???????? | | ################" # + ??????? | | ################# # ##???????? | | ################# " ##???????? | | ################" "##############???????? | | ############## ####### ??????? | | # ### ####### ???????? | | # ###% ####### ###???????? | | # " ### s ####### ####??????? | | # """ ### BB BB ####### ###???????? | | # """ ### BB BB ####### # ???????? | | # " ### ####### # ??????? | | # ###"""" """""####### # ??????? | | + ###"""" """""####### # ??????? | | #"" ###"""" """""####### # ??????? | | #"" ###"""" """""####### + ??????? | | #"T ### #######Ag# ?????? | | #"" ### """ "" ####### # ??????? | | #" ### " " ####### # ??????? | | # ### " "" " #######u #####?????? | | " !### " "X " ####### # ??????? | | ############## " " ####### # ??????? | | ############## """ "" ####### # ??????? | | # #### ####### # ??????? | | # #### ####### # ??????? | | # ""G"" ###""""""""""""###### # ???????? | | # Y"Y"Y ####"" ####### # ???????? | | # "Y" ####"" ####### #! ???????? | | # ####"" ####### # ????????? | | # ####T ####### +?????????? | | # ####"" ####### #?????????? | | ###+##########"" ####### ??????????? | | # #########"" ####### ???????????? | | # k k ????????????? | | # ? kk k ??????????????? | | # ####??########"########???????????????? | | ##+######?????###########??????????????????? | | # ???????????#???????????????????????? | | # ????????????????????????????????????? | | # ????????????????????????????????????? | | # ?????????????????????????????????????? | | + ??????????????????????????????????????? | | # ???????????????????????????????????????? | | # ????????????????????????????????????????? | | #??????????????????????????????????????????? | +----------------------------------------------------+ Best States ------------- Heat Dissipation 142 Coolant Potential 120 Energy Generation 83 Energy Capacity 1850 Matter Stores 300 Matter Capacity 600 Sight Range 22 Terrain Scan Range 20 Terrain Scan Density 210 ECM Strength 1 Jamming Range 16 Power Amplification 30 Additional Mass Support 20 EM Shielding 4 Armor Coverage 1600 Resistance: KI 50 Resistance: TH 50 Resistance: EX 50 Resistance: EM 75 Resistance: I 50 Resistance: S 50 Resistance: P 50 Propulsion Shielding 33 Weapon Shielding 100 Point Defense Rating 240 Melee Speed Boost 30 Phase Shifting 8 Evasion (%) 69 Targeting Accuracy 20 Target Analysis 10 Core Analysis 8 Armor Integrity Analysis 30 Recoil Reduction 6 Particle Charging 20 Authchip Count 1 Item Schematics ----------------- Helical Railgun | -2/Testing | Archive Proton Burst Cannon | -2/Testing | Archive Point Singularity Launcher | -2/Testing | Archive Exp. Field Recycling Unit | -2/Testing | Archive Kinetic Spear | -2/Testing | Archive Centrium Heavy Treads | -2/Testing | Archive Robot Schematics ------------------ A-15 Conveyor | -2/Testing | Archive R-06 Scavenger | -2/Section 7 | Archive Fabricated ------------ Combat Drone Bay | x1 | -5/Factory | Authchip Huge Storage Unit | x1 | -5/Factory | Authchip Exp. Force Field | x1 | -2/Testing | Preloaded Alien Tech Used ----------------- Phase Armor Subatomic Replicator Core Cannon Core Stripper Phase Redirector Sigix Broadsword Matter Drive Core Reset Matrix Integrated Dissipator Sigix Exoskeleton Sigix Sheargun Achievements -------------- Home At Last? Rambo Victory By Combat Winner's Signature Challenges ------------ None Game ------ Seed SpreadOmegaModule Manual? 0 Play Time 09:06:53 Cumulative 313.7 hours Start 2022.05.14 @ 07:56:30 End 2022.05.24 @ 17:52:21 Sessions 48 Manual Loads 0 Difficulty Rogue Special Mode None Game No. 131 Rogue 131 Adventurer 0 Explorer 0 Win Type 2 Total 8 Types 5/0/1/1/0/0/0/1/0 Lore% 88 Gallery% 90 Achievement% 70 Wizard Run 0 Options --------- ASCII 0 Keyboard 1 Movement Vi Keybinds 0 Fullscreen 2 Font 18/Cog Map View 76x50 Tactical HUD 1 Map Filters NONE Filters NONE Steam 0 RUN: ad1e1219-083f-484c-bf04-dbf656536652